Cogmind - Beta 12 *** ADVENTURER MODE // 2023.05.08 @ 23:28:28 Player: core_nxt Result: Assimilated 0b10! Performance ------------- Evolutions (9) 4500 Regions Visited (39) 7800 Robots Destroyed (1321) 6605 Value Destroyed (84603) 84603 Prototype IDs (328) 6560 Alien Tech Used (18) 3600 Bonus (83753) 83753 TOTAL SCORE: 197421 Bonus ------- Triggered High Security 500 High Alert Combat Kills 41039 Follower Combat Kills 6145 Entered Garrisons 800 Entered DSFs 500 Met Imprinter 300 Destroyed Z-Imprinter 1000 Triggered Deep Caves Wall 500 Exposed GOLEM Chamber 500 Met Zhirov 300 Found Hidden Lab 3000 Used Core Reset Matrix 3000 Scanned by Researcher 500 Pursued by Intercept 2500 Destroyed MAIN.C Guards 500 Met MAIN.C 5000 Destroyed MAIN.C Shell 5000 Destroyed MAIN.C 10000 Used 0b10 Conduit 2000 Win 3000 Friendly Fire -2331 Cogmind --------- Core Integrity 289/1600 Matter 299/300 Energy 1090/1100 System Corruption 10% Temperature Cool (0) Movement Walking (180) Ox1 Location 0b10 Command Parts ------- > --- POWER (2) -------- Assembled Flux Generator > --- PROPULSION (2) --- Assembled Alloy Leg Assembled Alloy Leg > --- UTILITY (18) ----- Advanced Power Amplifier Assembled Nanovents Assembled Nanovents High-capacity Storage Unit Assembled Biocell Array Encrypted Comm Array Assembled Combat Suite Experimental Targeting Computer Experimental Core Analyzer Experimental Core Analyzer Assembled Alloy Armor GOLEM Unit > --- WEAPON (4) ------- Assembled Focal Cannon > --- INVENTORY (27) --- Heavy Regenerative Plating Heavy Regenerative Plating GOLEM Unit Dimensional Node Initializer Dimensional Node Initializer Transdimensional Reconstructor Subatomic Replicator Terrabomb Spacefold Activator Sigix Sheargun Sigix Shearcannon L-Cannon (25) Sigix Terminator (1) Sigix Broadsword Peak State ------------ > --- POWER ------------ Assembled Flux Generator > --- PROPULSION ------- Assembled Alloy Leg Assembled Alloy Leg > --- UTILITY ---------- Assembled Nanovents Assembled Nanovents Assembled Nanovents High-capacity Storage Unit Assembled Biocell Array Experimental Signal Interpreter Assembled Alloy Armor Phase Armor Advanced Hacking Suite Quantum Router Advanced Component Analysis Suite GOLEM Unit LC Capacitor > --- WEAPON ----------- Core Stripper Sigix Broadsword > --- INVENTORY -------- Reinforced Quantum Reactor Encrypted Comm Array Advanced Cloaking Device Experimental EM Disruption Field Phase Redirector Antimissile System 01-MTF's Autohacker Advanced Trap Extractor GOLEM Unit AS-neutralizer No. 17b Dimensional Node Initializer Dimensional Node Initializer Transdimensional Reconstructor Transdimensional Reconstructor Transdimensional Reconstructor Transdimensional Reconstructor Core Expander Core Reset Matrix Subatomic Replicator Terrabomb Terrabomb Heavy Quantum Rifle Cooled Nova Cannon Improved Potential Cannon AWS/Autocannon Ragnarok Missile Launcher Sigix Terminator Advanced Datajack Improved Remote Datajack Nanosword [Rating: 293] Favorites ----------- Power Assembled Flux Generator Engine F-cell Engine Power Core Light Nuclear Core Reactor Assembled Flux Generator Propulsion Assembled Alloy Leg Treads Advanced Treads Leg Assembled Alloy Leg Wheel High-density Centrium Wheel Hover Unit Zionite Glidesys I Utility Assembled Nanovents Device Assembled Nanovents Storage High-capacity Storage Unit Processor Experimental Targeting Computer Hackware Advanced Hacking Suite Protection Assembled Alloy Armor Artifact LC Capacitor Weapon Assembled Focal Cannon Energy Gun Advanced Beam Rifle Energy Cannon Assembled Focal Cannon Ballistic Gun 8R-AWN's Boregun Ballistic Cannon AWS/Autocannon Launcher Ragnarok Missile Launcher Special Weapon Remote Datajack Impact Weapon Gravity Flail Slashing Weapon Power Sword Piercing Weapon Plasma Lance Special Melee Weapon Advanced Datajack Build | -11 -10 -10 -9 -9 -9 -8 -8 -8 -7 -7 -7 -7 -7 -7 -7 -6 -6 -6 -6 -6 -6 -6 -5 -5 -5 -5 -4 -4 -4 -4 -3 -3 -3 -2 -2 -2 -2 -1 -1 ------- Run | Jun Mat Min Mat Min Exi Min Mat Sto Fac Was Fac Low Low Zio Dee Pro Fac Gar Fac Gar Fac DSF Fac Upp Upp Zhi Pro Fac Arm Lab Res Tes Gar Res Qua Sec Gar Acc Com Slots Evolved 18 | . . . 2 . . . 2 . 2 . . . . . . . 2 . . . . . 2 . . . . 2 . . 2 . . 4 . . . . . Power 1 | . . . . . . . . . 1 . . . . . . . . . . . . . . . . . . . . . . . . . . . . . . Propulsion . | . . . . . . . . . . . . . . . . . . . . . . . . . . . . . . . . . . . . . . . . Utility 15 | . . . 2 . . . 1 . 1 . . . . . . . 2 . . . . . 2 . . . . 2 . . 2 . . 3 . . . . . Weapon 2 | . . . . . . . 1 . . . . . . . . . . . . . . . . . . . . . . . . . . 1 . . . . . Parts Attached 959 | . 6 3 28 1 43 2 40 29 6 3 54 20 4 6 73 . 40 19 50 10 8 18 44 . . 9 13 53 40 16 15 64 6 7 29 84 47 28 41 Power 70 | . . 1 2 1 5 . 1 3 2 1 12 3 . . 7 . . . 10 . . 3 9 . . 2 . . 1 . . . . . . . 7 . . Engine 25 | . . . 2 1 2 . . . 1 . 10 1 . . 1 . . . 5 . . 1 1 . . . . . . . . . . . . . . . . Core 25 | . . 1 . . 3 . 1 2 1 1 2 2 . . . . . . 4 . . 2 6 . . . . . . . . . . . . . . . . Reactor 20 | . . . . . . . . 1 . . . . . . 6 . . . 1 . . . 2 . . 2 . . 1 . . . . . . . 7 . . Propulsion 54 | . 1 . 5 . 4 . 8 4 . . 7 1 . . 7 . . . 9 1 2 2 . . . . . 2 . . . . . . . 1 . . . Treads 11 | . . . 2 . . . 2 4 . . . . . . . . . . 3 . . . . . . . . . . . . . . . . . . . . Leg 27 | . 1 . 3 . 4 . 6 . . . 7 1 . . 3 . . . 1 . . . . . . . . . . . . . . . . 1 . . . Wheel 11 | . . . . . . . . . . . . . . . . . . . 5 1 2 2 . . . . . 1 . . . . . . . . . . . Hover 5 | . . . . . . . . . . . . . . . 4 . . . . . . . . . . . . 1 . . . . . . . . . . . Flight . | . . . . . . . . . . . . . . . . . . . . . . . . . . . . . . . . . . . . . . . . Utility 510 | . 2 1 12 . 23 . 22 9 4 . 15 6 . 2 33 . 27 9 12 . 5 7 31 . . 3 9 28 33 9 13 30 3 4 24 50 33 25 26 Device 302 | . . 1 5 . 10 . 16 5 4 . 8 4 . . 19 . 21 5 5 . 4 5 14 . . 2 5 17 27 8 13 22 2 4 8 31 16 13 8 Storage 20 | . 1 . . . 5 . 3 1 . . . . . . 4 . . . 1 . . . . . . . . . 1 . . 1 . . . . 1 . 2 Processor 44 | . . . . . 3 . 2 . . . . . . 1 1 . 1 1 2 . . 1 1 . . . 3 2 3 . . 4 . . . 6 . 5 8 Hackware 26 | . . . . . . . . 1 . . 1 . . . . . 3 . . . . . 16 . . . . 2 . . . . . . 2 . 1 . . Protection 100 | . 1 . 7 . 5 . 1 2 . . 6 2 . 1 9 . 2 3 4 . 1 1 . . . 1 1 7 2 . . 2 1 . 9 10 9 6 7 Artifact 18 | . . . . . . . . . . . . . . . . . . . . . . . . . . . . . . 1 . 1 . . 5 3 6 1 1 Weapon 325 | . 3 1 9 . 11 2 9 13 . 2 20 10 4 4 26 . 13 10 19 9 1 6 4 . . 4 4 23 6 7 2 34 3 3 5 33 7 3 15 Energy Gun 103 | . 3 1 6 . 3 . 7 7 . 1 9 2 . . 19 . 2 2 12 5 1 1 2 . . . . 6 . . . 4 1 . . 4 1 1 3 Energy Cannon 33 | . . . 2 . . . . 2 . . 2 . 2 . . . . . . . . . . . . . 2 6 . 3 . 2 . 1 . 5 1 . 5 Ballistic Gun 61 | . . . 1 . 7 1 2 4 . 1 2 2 . 2 5 . . 5 1 . . 2 . . . . . 1 3 . . 19 . . . 2 1 . . Ballistic Cannon 8 | . . . . . . . . . . . . . . . 1 . 3 . . . . . . . . . . 1 . . . . . . . 2 . . 1 Launcher 19 | . . . . . 1 1 . . . . . 3 1 . . . 2 . 2 3 . . . . . . 2 1 . . . . . . . 2 . 1 . Special Weapon 11 | . . . . . . . . . . . 3 3 . . . . . 1 1 . . . . . . . . 1 . 1 . . . . . 1 . . . Impact Weapon 24 | . . . . . . . . . . . . . 1 2 . . 1 2 3 . . 1 1 . . 2 . 5 2 . . . . . 1 3 . . . Slashing Weapon 45 | . . . . . . . . . . . 4 . . . 1 . 5 . . . . 1 . . . . . . 1 3 2 7 . 1 4 7 4 1 4 Piercing Weapon 2 | . . . . . . . . . . . . . . . . . . . . . . . . . . . . . . . . 1 . . . 1 . . . Special Melee Weapon 19 | . . . . . . . . . . . . . . . . . . . . 1 . 1 1 . . 2 . 2 . . . 1 2 1 . 6 . . 2 Unidentified Prototypes 108 | . . . . . 8 . 1 4 . . 7 . . . 11 . 7 . 5 . 1 . . . . 3 . 2 1 5 2 16 . . 7 16 . 4 8 Corrupted Parts 2 | . . . 1 . . . . . . . . . . . . . . . 1 . . . . . . . . . . . . . . . . . . . . System Corruption 3 | . . . 1 . . . . . . . . . . . . . . . 2 . . . . . . . . . . . . . . . . . . . . Parts Lost 228 | . 1 2 3 . . . 1 7 . . 2 4 . . 32 . 4 5 14 . 1 6 2 . . . 10 34 9 1 1 26 3 . 6 19 8 4 23 Power 29 | . . . . . . . . 2 . . 1 1 . . 6 . . . 5 . 1 2 1 . . . 1 4 1 . . 1 . . . . 1 . 2 Propulsion 16 | . . . 1 . . . . 1 . . . . . . 5 . . . 2 . . . . . . . . 3 . . . 3 . . . 1 . . . Utility 109 | . . 1 . . . . 1 . . . 1 3 . . 9 . 1 3 3 . . . . . . . 6 13 4 1 1 14 2 . 5 16 6 3 16 Weapon 74 | . 1 1 2 . . . . 4 . . . . . . 12 . 3 2 4 . . 4 1 . . . 3 14 4 . . 8 1 . 1 2 1 1 5 Highest Loss Streak 12 | . 1 2 2 . . . 1 3 . . 2 1 . . 9 . 1 3 8 . 1 5 1 . . . 8 8 5 1 1 12 2 . 3 3 4 2 9 To Critical Strikes 9 | . . . . . . . . . . . . . . . . . . . 1 . . . . . . . . 3 1 . . 1 . . . 1 1 . 1 Average Slot Usage (%) 86 | . 98 99 98 100 95 87 80 86 90 92 89 89 92 90 82 83 85 87 85 85 83 89 91 100 100 99 80 85 88 85 79 76 79 83 77 75 84 85 83 Engine 2 | . 14 2 5 11 6 . . . 6 2 10 2 7 7 1 . . . 3 13 10 1 1 . . . . . . . . . . . . . . . . Core 2 | . . 11 5 . 4 11 9 5 . 4 1 12 7 7 1 . . . 5 . . 7 4 . . . . . . . . . . . . . . . . Reactor 3 | . . . . . . . . 3 7 7 1 . . . 5 7 6 6 1 . . . 4 11 11 11 6 4 4 5 4 3 4 4 4 3 4 3 2 Treads 1 | . . . . . . . . 17 15 15 2 . . . . . . . . . . . . . . . . . . . . . . . . . . . . Leg 10 | . 28 28 21 22 21 22 17 . . . 12 14 15 15 11 15 12 13 4 . . . . . . . 3 9 10 10 9 8 9 8 8 7 6 7 7 Wheel 1 | . . . . . . . . . . . . . . . . . . . 7 13 13 12 11 11 11 11 7 . . . . . . . . . . . . Device 17 | . . 11 21 22 4 11 10 10 21 23 17 3 15 15 13 15 18 18 9 6 12 22 22 17 17 16 10 20 26 35 27 25 18 23 16 24 23 27 20 Storage 8 | . 14 14 11 11 6 11 9 9 7 7 7 7 7 7 4 7 13 13 12 13 6 6 5 5 5 5 6 9 10 10 9 8 9 8 8 6 10 11 10 Processor 11 | . . . . . 24 11 15 11 7 7 7 7 7 7 17 15 12 10 13 13 13 19 17 23 23 23 27 20 15 5 4 5 14 12 9 6 7 5 13 Protection 5 | . 12 2 10 11 4 . . . . . 4 17 7 6 3 . . 6 5 6 6 2 . . . . 1 4 4 5 4 3 4 7 11 10 14 15 14 Energy Gun 6 | . 23 27 10 11 10 11 14 12 7 7 12 5 15 13 5 . . . 11 19 18 4 3 11 11 11 1 1 . . . . . . . . . . . Energy Cannon 4 | . . . 8 . . . . 1 . . . . 5 3 6 14 13 6 . . . . . . . . 3 8 8 8 9 6 10 11 6 . 6 7 8 Ballistic Gun 2 | . 4 . 3 11 11 10 3 10 15 15 3 9 . . 4 . . 8 5 . . . . . . . . . 1 . . 3 . . . . . . . Slashing Weapon 1 | . . . . . . . . . . . 5 . . . . 7 5 . . . . 3 . . . . . . 3 3 4 1 . . 1 2 3 2 . Naked Turns . | . . . . . . . . . . . . . . . . . . . . . . . . . . . . . . . . . . . . . . . . Heaviest Build 258 | 12 51 51 65 65 227 227 258 227 233 244 256 62 65 65 147 116 133 133 108 112 112 72 106 102 102 102 119 133 132 142 150 150 151 157 166 173 170 170 203 Greatest Support 180 | 20 20 20 40 24 36 36 54 92 80 80 80 56 56 56 60 60 60 60 60 40 40 40 40 40 40 40 60 60 80 80 80 60 60 80 120 180 80 80 120 Greatest Overweight (x) 19 | . 2 2 5 2 6 6 19 9 2 3 8 1 1 1 2 1 3 2 17 2 2 3 2 2 2 2 2 3 4 1 2 4 2 2 2 4 2 2 3 Average Overweight (x) 1 | . 1 2 1 2 1 6 7 2 2 2 3 . 1 . . 1 1 1 1 2 2 1 1 2 2 1 1 1 1 1 1 2 2 1 1 1 1 1 1 Largest Inventory Capacity 75 | . 20 20 20 20 35 35 35 35 35 35 45 45 45 45 45 50 50 50 35 35 35 75 75 75 75 75 75 75 75 55 55 55 50 50 50 40 24 27 27 Average Capacity 42 | . 15 20 20 20 16 35 34 35 35 35 37 44 45 45 18 49 48 47 33 35 35 46 75 75 75 75 75 75 74 55 55 51 50 50 45 29 22 26 27 Most Carried 71 | . 16 16 20 20 32 33 35 35 35 35 40 43 43 45 45 46 48 34 35 34 35 69 71 50 50 55 60 65 57 55 55 55 48 47 50 37 24 27 27 Average Carried 36 | . 9 14 19 20 11 32 33 34 34 34 35 40 40 44 16 45 44 31 32 34 34 43 60 49 49 53 57 53 52 53 51 47 47 45 44 28 21 25 25 Final Capacity 75 | 8 20 20 20 20 35 35 35 35 35 35 45 45 45 45 45 50 50 30 35 35 35 75 75 75 75 75 75 75 55 55 55 50 50 50 35 24 22 27 27 Final Carried 69 | 6 16 15 20 20 32 33 35 35 35 35 40 40 43 43 45 46 34 30 34 34 35 69 49 50 50 55 60 50 49 55 52 47 47 45 35 24 22 27 23 Class Distribution -------------------- 25% | Hauler-Golem 20% | Hauler-Mutant 9% | Alien-Golem 9% | Mutant 7% | Hauler-Gunner 6% | Trapper-Golem Dominant Class ---------------- Mutant | -10/Materials Scavenger-Mutant | -10/Mines Mutant | -9/Materials Mutant | -9/Mines Mutant | -9/Exiles Hauler-Mutant | -8/Mines Hauler-Gunner | -8/Materials Commander-Mutant | -8/Storage Commander-Skirmisher | -7/Factory Hauler-Skirmisher | -7/Waste Hauler-Mutant | -7/Factory Hauler-Mutant | -7/Lower Caves Hauler-Tank | -7/Lower Caves Hauler-Tank | -7/Zion Hauler-Golem | -7/Deep Caves Hauler-Golem | -6/Proximity Caves Hauler-Golem | -6/Factory Hauler-Mutant | -6/Garrison Hauler-Gunner | -6/Factory Hauler-Gunner | -6/Garrison Hauler-Skirmisher | -6/Factory Hauler-Mutant | -6/DSF Hauler-Assassin | -5/Factory Hauler-Mutant | -5/Upper Caves Hauler-Mutant | -5/Upper Caves Hauler-Mutant | -5/Zhirov Trapper-Mutant | -4/Proximity Caves Hauler-Golem | -4/Factory Hauler-Golem | -4/Armory Trapper-Golem | -4/Lab Trapper-Golem | -3/Research Hauler-Golem | -3/Testing Hauler-Golem | -3/Garrison Hauler-Golem | -2/Research Hauler-Golem | -2/Quarantine Alien-Mutant | -2/Section 7 Alien-Golem | -2/Garrison Alien-Golem | -1/Access Alien-Golem | -1/Command Resources | -11 -10 -10 -9 -9 -9 -8 -8 -8 -7 -7 -7 -7 -7 -7 -7 -6 -6 -6 -6 -6 -6 -6 -5 -5 -5 -5 -4 -4 -4 -4 -3 -3 -3 -2 -2 -2 -2 -1 -1 ----------- Run | Jun Mat Min Mat Min Exi Min Mat Sto Fac Was Fac Low Low Zio Dee Pro Fac Gar Fac Gar Fac DSF Fac Upp Upp Zhi Pro Fac Arm Lab Res Tes Gar Res Qua Sec Gar Acc Com Matter Collected 15768 | 200 320 30 379 49 541 30 661 684 80 30 868 534 73 10 910 . 455 879 1594 181 93 254 470 10 . . 393 684 484 215 160 1874 142 10 328 1124 596 73 350 Remotely . | . . . . . . . . . . . . . . . . . . . . . . . . . . . . . . . . . . . . . . . . Salvage Created 93772 | . 562 144 1456 169 462 90 1916 1922 25 . 2529 1530 665 . 1225 148 3335 3149 4783 1697 323 433 1268 116 558 . 789 6531 3453 650 489 4931 2099 525 3536 10035 3655 2303 26271 Parts 2694 | . 33 7 95 7 50 6 132 84 1 . 136 55 30 . 66 10 176 118 229 44 17 23 29 8 7 . 16 292 158 21 16 253 117 23 64 136 150 30 55 Haulers Intercepted 32 | . . . 4 . . . 6 5 . . 3 1 . . . . 3 . 4 . . 1 1 . . . . 3 . . . . . . . 1 . . . Recyclers Shooed 7 | . . . . . . . 1 . . . . . . . . . 1 . 2 . 1 . . . . . . 2 . . . . . . . . . . . Parts Field Recycled . | . . . . . . . . . . . . . . . . . . . . . . . . . . . . . . . . . . . . . . . . Retrieved Matter . | . . . . . . . . . . . . . . . . . . . . . . . . . . . . . . . . . . . . . . . . Parts Self-Destructed 99 | . . . . . . . . . . . . 33 18 2 . 10 . . . . . . . 18 4 . 14 . . . . . . . . . . . . Prevented 87 | . . . . . . . . . . . . 18 8 . . . . . . . . . . 31 25 . 5 . . . . . . . . . . . . Kills | -11 -10 -10 -9 -9 -9 -8 -8 -8 -7 -7 -7 -7 -7 -7 -7 -6 -6 -6 -6 -6 -6 -6 -5 -5 -5 -5 -4 -4 -4 -4 -3 -3 -3 -2 -2 -2 -2 -1 -1 ------- Run | Jun Mat Min Mat Min Exi Min Mat Sto Fac Was Fac Low Low Zio Dee Pro Fac Gar Fac Gar Fac DSF Fac Upp Upp Zhi Pro Fac Arm Lab Res Tes Gar Res Qua Sec Gar Acc Com Combat Hostiles Destroyed 1316 | . 9 3 33 4 2 3 34 28 . . 47 23 14 . 16 2 47 38 72 41 7 9 15 2 9 . 14 90 50 9 6 68 38 6 38 121 57 27 334 Melee 70 | . . . . . . . . . . . 2 . . . . 1 1 . . . . . 5 . . . . . 1 . . . . . 4 32 12 9 3 Guns 367 | . 8 3 19 4 1 3 34 26 . . 42 13 9 . 15 . . 16 67 29 6 9 2 2 4 . 2 14 3 . . 34 . . . 1 1 . . Cannons 384 | . . . 12 . . . . . . . . . 5 . . 1 46 21 . . . . . . . . 1 65 43 9 6 33 38 6 17 16 35 8 22 AOE 45 | . 1 . 1 . 1 . . . . . . 8 . . . . . . 2 11 . . . . . . 5 5 . . . 1 . . . 1 9 . . Classes Destroyed 38 | . 4 1 2 . 3 1 2 2 . . 5 1 1 . 3 1 . . 1 1 1 . . . . . 1 1 . . . 2 . . 2 1 . 1 1 Worker 28 | . . . . . . . 1 1 . . 1 . . . . . 4 . 8 . . . . . . . . 3 . . . . . . 1 2 . 1 6 Builder 14 | . 1 . . . . . 1 . . . 1 . . . . . . . 2 . . . . . . . . 9 . . . . . . . . . . . Tunneler 2 | . . . . . . . . . . . . . . . . . . . . . . . . . . . . 2 . . . . . . . . . . . Hauler 32 | . . . 4 . . . 6 5 . . 3 1 . . . . 3 . 4 . . 1 1 . . . . 3 . . . . . . . 1 . . . Recycler 8 | . 1 . . . . . . . . . . . . . . . 1 . . . . . 1 . . . . 2 . . . . . . 1 . . . 2 Carrier 1 | . . . . . . . . . . . . . . . . . . . . . . . . . . . . . . . . . . . . . . . 1 Minesweeper 1 | . . . . . . . . . . . . . . . . 1 . . . . . . . . . . . . . . . . . . . . . . . Mechanic 10 | . . . . . . . . . . . . . . . . . . . 2 . . . . . . . . 1 . . . . . . . . . . 7 Operator 9 | . . . . . . . . 1 . . 2 . . . . . . . 2 . 1 . 1 . . . . . . . . . . . . 1 . . 1 Drone 1 | . . . . . . . . . . . . . . . . . . . . . . . . . . . 1 . . . . . . . . . . . . Turret 1 | . . . . . 1 . . . . . . . . . . . . . . . . . . . . . . . . . . . . . . . . . . Watcher 55 | . 3 . 3 . . . 5 2 1 . . . . . . . 7 . 6 . . . 2 . . . . 6 4 . . 3 . 1 3 4 . 1 4 Swarmer 164 | . . . 14 . . 2 12 . . . 11 1 2 . . . 3 3 8 4 . 3 . 1 2 . 2 18 3 . . 5 9 . . 6 20 . 35 Cutter 17 | . . . . . . . . . . . 1 . . . . . . . . . . . . . . . . 3 . . . . 6 . . . . 1 6 Saboteur 13 | . . . . . . . . . . . . . . . . . . . . . 1 . . . . . . 1 3 . . . . . . 1 . 1 6 Grunt 414 | . 9 2 9 4 . . 9 17 . . 14 14 3 . . 1 16 25 32 18 3 . 10 . 3 . 4 27 6 9 . 9 9 2 10 33 18 9 89 Brawler 62 | . . . . . . . 1 1 . . . 2 1 . . . . . 3 8 . . . . 1 . 3 5 2 . . . . 2 . 4 . 3 26 Duelist 46 | . . . . . . . . 1 . . . 3 2 . . . 1 1 2 2 1 . . . . . . 1 6 . . . . . 1 3 2 . 20 Protector 15 | . . . . . . . . . . . 1 . . . . . . . 1 . . . . . . . 1 . 1 . . . . . . . . . 11 Researcher 10 | . . . . . . . . . . . . . . . . . . . . . . . . . . . . . . . . 1 . . . 9 . . . Sentry 102 | . . 1 10 . . . 11 7 . . 5 2 1 . . . 5 5 6 4 . . . 1 1 . 2 11 7 . 2 . 3 . . 7 9 1 1 Demolisher 8 | . . . . . . . . . . . . . . . . . . . . . . . . . . . . . . . . . . . . . . 1 7 Specialist 38 | . . . . . . . . . . . 3 . . . . . . . 4 4 . 5 . . . . . . 9 . . . . . . . . . 13 Hunter 104 | . . . . . . 1 1 2 . . 2 . 2 . . 1 10 2 8 . 2 . 2 . . . . 7 6 . . 6 . . 6 2 1 2 41 Programmer 196 | . . . . . . . . . . . 8 . . . . . 12 2 7 . . . 3 . 2 . . 15 8 . 2 27 11 2 15 27 4 3 48 Heavy 7 | . . . . . . . . . . . 2 . . . . . 1 . 1 . . 1 . . . . . 1 1 . . . . . . . . . . Behemoth 12 | . . . . . . . . . . . . . . . . . . . . 1 . . 1 . . . 1 1 . . . . . . . 2 3 2 1 S7 Guard 2 | . . . . . . . . . . . . . . . . . . . . . . . . . . . . . . . . . . . . 2 . . . M Guard 2 | . . . . . . . . . . . . . . . . . . . . . . . . . . . . . . . . . . . . . . . 2 Tracker 28 | . . . . . . . . . . . . . . . . . . . . . . . . . . . . . . . 1 9 . . 2 14 . 2 . Combat Programmer 29 | . . . . . . . . . . . . . . . . . . . . . . . . . . . . . . . 1 9 . . 2 13 . 2 2 Investigator 2 | . . . . . . . . . . . . . . . . . . . . . . . . . . . . . . . . . . . . . . . 2 Striker 16 | . . . . . . . . . . . . . . . . . . . . . . . . . . . . . . . . 2 . . . 3 . . 11 Executioner 16 | . . . . . . . . . . . . . . . . . . . . . . . . . . . . . . . . . . . . 4 . . 12 Alpha 7 2 | . . . . . . . . . . . . . . . . . . . . . . . . . . . . . . . . . . . 1 . . . 1 Fortress 1 | . . . . . . . . . . . . . . . . . . . . . . . . . . . . . . . . . . . 1 . . . . Protovariant P 1 | . . . . . . . . . . . . . . . . . . . . . . . . . . . . . . . . 1 . . . . . . . Zionite 7 | . . . . . 7 . . . . . . . . . . . . . . . . . . . . . . . . . . . . . . . . . . Z-Light 10 | . . . . . . . . . . . . . . . 10 . . . . . . . . . . . . . . . . . . . . . . . . Master Thief 3 | . . . . . . . . . . . . . 3 . . . . . . . . . . . . . . . . . . . . . . . . . . Assembler 2 | . . . . . . . . . . . . . . . 2 . . . . . . . . . . . . . . . . . . . . . . . . Assembled 6 | . . . . . 1 . . . . . . . . . 3 . . . . . . . . . . . . . . . . . . . . . . . 2 Golem 2 | . . . . . . . . . . . . . . . 2 . . . . . . . . . . . . . . . . . . . . . . . . Thug 1 | . . . . . . . . . . . . . . . . . . . . 1 . . . . . . . . . . . . . . . . . . . Mutant 1 | . . . . . . . . . . . . 1 . . . . . . . . . . . . . . . . . . . . . . . . . . . Best Kill Streak 143 | . 8 1 5 2 7 1 6 14 1 . 7 8 5 . 4 1 6 7 14 16 5 5 6 1 6 . 6 16 10 9 2 7 13 5 7 19 20 18 143 Combat Bots Only 138 | . 2 1 4 2 1 1 5 14 . . 7 8 5 . 4 1 6 7 10 16 5 4 6 1 6 . 6 7 10 9 2 7 13 4 7 18 20 10 138 Max Kills in Single Turn 9 | . 1 1 1 1 2 1 2 2 1 . 2 2 1 . 1 1 3 1 2 8 2 2 1 1 1 . 3 5 2 1 1 2 2 1 1 2 6 1 9 Gunslinging 1 | . . . . . . . . . . . 1 1 . . . . . . 1 1 1 . . . . . . . . . . . . . . . . . . Exploded 8 | . 1 . 1 . 1 . . . . . . 2 . . . . . . 1 8 . . . . . . 3 2 . . . 1 . . . 1 6 . . Melee 1 | . . . . . . . . . . . 1 . . . . 1 1 . . . . . 1 . . . . . 1 . . . . . 1 1 1 1 1 Uniques/NPCs Destroyed 8 | . . . . . 4 . . 1 . . . . . . 1 . . . . . . . . . . . . . . . . . . . . . . . 2 8R-AWN (-9/Exiles) EX-HEX (-9/Exiles) EX-BIN (-9/Exiles) EX-DEC (-9/Exiles) 01-MTF (-8/Storage) Z-Imprinter (-7/Deep Caves) MAIN.C Shell (-1/Command) MAIN.C (-1/Command) Combat | -11 -10 -10 -9 -9 -9 -8 -8 -8 -7 -7 -7 -7 -7 -7 -7 -6 -6 -6 -6 -6 -6 -6 -5 -5 -5 -5 -4 -4 -4 -4 -3 -3 -3 -2 -2 -2 -2 -1 -1 -------- Run | Jun Mat Min Mat Min Exi Min Mat Sto Fac Was Fac Low Low Zio Dee Pro Fac Gar Fac Gar Fac DSF Fac Upp Upp Zhi Pro Fac Arm Lab Res Tes Gar Res Qua Sec Gar Acc Com Damage Taken 97155 | . 400 224 1033 122 472 74 442 1984 44 . 3079 1094 298 17 4943 137 2845 2841 4496 1318 291 851 722 137 431 . 1285 8571 3191 542 267 10335 2298 500 4184 11390 4776 3075 18446 Core 11428 | . 67 62 133 22 178 . 102 347 4 . 441 87 50 17 1222 15 276 276 553 68 33 292 101 75 46 . 215 1408 453 41 28 1089 192 91 227 1366 113 203 1535 Absorbed by Shields 3937 | . . . . . . . . . . . . . 279 17 211 . . 4 . . . 30 . . . . . . 431 . . . . . . 2880 . . 85 Redirected to Core 449 | . . . . . . . . . . . . . . . . . . . . . . . . . . . . . . . . . . . 44 405 . . . Redirected to Shielding 2399 | . . . . . . . . . . . 14 168 . . 296 . 57 129 778 . . 90 . . . . . 495 238 . . . . . . 47 . . 87 Regen/Repaired (Parts) 18307 | . . . 127 . . . 206 524 . . 1543 . . . . . 78 . 14 . . . 74 . 41 95 . 199 101 . 77 55 . . 114 4783 2542 1044 6690 Core Remaining (%) 44 | 100 . 48 . . . 55 . 18 . . . . . . . 60 . . . . . 6 . . . . 56 . . 20 . . 69 . . . 38 . 18 Volleys Fired 2707 | . 28 13 90 13 23 10 57 135 2 . 141 52 35 3 85 7 133 133 190 66 10 24 18 15 21 . 28 308 160 22 18 283 86 13 55 57 88 22 263 Largest 4 | . 2 2 2 2 2 2 1 3 3 . 3 2 3 3 3 2 3 3 3 3 3 3 2 2 2 . 2 3 2 2 2 3 3 3 3 2 2 2 4 Hottest 280 | . 105 105 113 86 86 86 61 180 116 . 172 122 197 197 195 50 75 100 250 250 250 225 170 170 170 . 170 225 80 225 50 140 75 100 100 200 70 50 280 Shots Fired 5174 | . 54 24 136 26 44 15 167 253 6 . 291 94 92 9 157 14 247 276 394 151 22 43 36 30 42 . 48 583 299 44 36 509 193 39 122 73 134 44 427 Gun 2572 | . 54 24 87 26 42 15 167 251 6 . 287 84 70 6 123 . . 130 391 145 22 43 36 30 42 . 32 121 16 . . 250 . . . 28 7 . 37 Cannon 2559 | . . . 49 . . . . 2 . . . . 22 3 34 14 247 146 . . . . . . . . 8 459 283 44 36 259 193 39 122 42 123 44 390 Launcher 38 | . . . . . 2 . . . . . . 10 . . . . . . 3 6 . . . . . . 8 2 . . . . . . . 3 4 . . Special 5 | . . . . . . . . . . . 4 . . . . . . . . . . . . . . . . 1 . . . . . . . . . . . Kinetic 1060 | . 21 . 21 13 22 10 48 101 4 . 58 52 . . 53 . . 117 183 . . 16 . . . . . 32 16 . . 245 . . . . 7 . 41 Thermal 3685 | . 5 13 72 13 20 5 119 152 2 . 226 32 92 9 101 14 247 147 168 120 20 27 36 30 42 . 38 506 283 44 36 259 193 39 122 20 123 44 266 Explosive 17 | . . . . . 2 . . . . . . . . . . . . . . 3 . . . . . . 3 2 . . . . . . . 3 4 . . Electromagnetic 237 | . 28 11 43 . . . . . . . 3 10 . . 3 . . 12 43 28 2 . . . . . 7 42 . . . 5 . . . . . . . Slashing 170 | . . . . . . . . . . . . . . . . . . . . . . . . . . . . . . . . . . . . 50 . . 120 Robot Hit Streak 77 | . 35 17 22 26 48 13 27 29 18 . 48 18 10 5 30 11 32 36 60 46 25 47 14 19 21 . 47 71 36 35 13 53 59 18 26 77 34 29 43 Robot Miss Streak 7 | . 2 1 5 . 1 2 2 2 . . 2 3 3 3 3 1 2 5 4 2 3 1 1 1 1 . 1 3 2 1 1 7 1 1 2 2 1 1 4 Penetration Max 3 | . . . . . . . . . . . 1 . . . 1 . . 1 2 . . . . . . . . . 1 . . 3 . . . 1 . . 1 Secondary Targets 52 | . 1 . 2 . 1 . . 3 . . 8 2 2 . 3 . . 3 13 3 2 1 1 . 2 . 1 2 . . . 1 . . . 1 . . . Max Gunslinging Chain 1 | . 1 . 1 . 1 . . 1 . . 1 1 1 . 1 . . 1 1 1 1 1 1 . 1 . 1 1 . . . 1 . . . 1 . . . Autonomous 178 | . . . . . . . 112 19 . . . . . . . . . . . . . . . . . . . 6 . . . . . . . . . . 41 Shots Hit Robots 4345 | . 46 22 102 25 34 11 149 199 5 . 241 70 65 3 115 10 185 155 320 101 19 40 68 27 36 5 51 489 232 23 24 385 122 24 114 278 127 67 356 Core Hits 2058 | . 22 6 49 9 18 5 59 72 3 . 90 41 29 . 41 3 74 73 258 135 22 25 18 8 13 . 53 214 89 16 12 207 47 11 37 120 74 25 80 Critical Kills 87 | . . . 1 . 1 . . 1 . . 9 6 . . 2 . . 15 32 . . . 2 . . . . 1 3 . . 14 . . . . . . . Critical Parts Destroyed 127 | . . . . . 1 . . 2 1 . 6 8 . . 5 . . 10 39 . . . 9 . . . 2 1 4 . . 39 . . . . . . . Critical Strikes 395 | . . 3 4 . 12 1 1 12 1 . 31 16 4 . 12 1 . 26 75 1 . . 17 11 15 . 9 3 7 . . 63 . . . 65 2 . 3 Burn 87 | . . 3 1 . 10 1 1 9 . . 15 1 4 . 4 . . . . . . . 5 11 15 . 6 1 . . . . . . . . . . . Meltdown 1 | . . . 1 . . . . . . . . . . . . . . . . . . . . . . . . . . . . . . . . . . . . Destroy 208 | . . . . . 2 . . 3 1 . 15 15 . . 8 . . 25 71 . . . . . . . . 1 5 . . 62 . . . . . . . Blast 2 | . . . . . . . . . . . . . . . . . . . . . . . . . . . . . . . . . . . . . . . 2 Corrupt 10 | . . . 2 . . . . . . . 1 . . . . . . 1 4 1 . . . . . . . . . . . 1 . . . . . . . Smash 17 | . . . . . . . . . . . . . . . . . . . . . . . 11 . . . 3 1 2 . . . . . . . . . . Sever 70 | . . . . . . . . . . . . . . . . 1 . . . . . . 1 . . . . . . . . . . . . 65 2 . 1 Melee Attacks 670 | . . . . . . . . . . . 10 . . 70 2 4 10 2 5 . . . 48 . 1 5 10 21 10 4 14 26 14 6 35 243 57 41 32 Kinetic 117 | . . . . . . . . . . . . . . . . . . . . . . . . . . . . . . . . . . . 30 87 . . . Impact 142 | . . . . . . . . . . . . . . 70 . . . 2 5 . . . 33 . 1 . 10 15 6 . . . . . . . . . . Slashing 359 | . . . . . . . . . . . 10 . . . 2 4 10 . . . . . 10 . . . . . 4 4 14 25 . 4 5 139 57 41 30 Piercing . | . . . . . . . . . . . . . . . . . . . . . . . . . . . . . . . . . . . . . . . . Sneak Attacks 51 | . . . . . . . . . . . 1 . . . . . 1 . . . . . 7 . . 3 . 4 . . . . 14 2 2 16 . 1 . Combat Hostiles 5 | . . . . . . . . . . . . . . . . . . . . . . . 4 . . . . . . . . . . . . 1 . . . Follow-up Attacks 6 | . . . . . . . . . . . . . . . . . . . . . . . 4 . . . . . . . . . . . . 2 . . . Damage Inflicted 167262 | . 831 324 1702 419 1821 150 3784 3644 88 . 4930 2153 1654 74 3302 314 9593 6384 9758 6010 812 1196 2653 532 707 . 2682 21182 11393 1085 1288 14873 5628 1147 4742 13468 12982 3736 10221 Guns 47463 | . 641 324 876 396 1729 150 3760 3590 88 . 4776 1066 1262 46 2020 . . 1247 9022 3664 775 1196 638 532 707 . 544 2056 147 . . 4925 . . . 717 175 . 394 Cannons 90207 | . . . 791 . . . . . . . . . 392 28 1274 190 9199 4898 . . . . . . . . 294 16976 10327 1085 1288 9425 5628 1147 4048 3070 8881 1980 9286 Explosions 11811 | . 190 . 35 . 92 . . . . . . 1087 . . . . 287 239 716 2346 . . . . . . 1422 1763 476 . . 113 . . . 1319 1726 . . Melee 17615 | . . . . . . . . . . . 154 . . . . 124 107 . . . . . 2015 . . . 422 387 443 . . 410 . . 694 8362 2200 1756 541 Ramming 166 | . . . . 23 . . 24 54 . . . . . . 8 . . . 20 . 37 . . . . . . . . . . . . . . . . . . Kinetic 19643 | . 182 . 126 173 1473 79 667 1201 48 . 784 626 . . 716 . . 806 2811 . . 267 . . . . . 932 147 . . 4874 . . 694 . 175 . 2862 Thermal 112621 | . 260 214 991 223 256 71 3093 2389 40 . 3975 583 1654 74 2512 190 9486 5137 5051 3169 656 929 638 532 707 . 838 17988 10327 1085 1288 9425 5628 1147 4048 1272 8881 1980 5884 Explosive 7607 | . . . . . 92 . . . . . . . . . . . . . . 2288 . . . . . . 1290 748 476 . . . . . . 987 1726 . . Electromagnetic 6523 | . 389 110 585 . . . . . . . 17 944 . . 66 . . 441 1876 553 119 . . . . . 132 1127 . . . 164 . . . . . . . Impact 2916 | . . . . . . . . . . . . . . . . . . . . . . . 1700 . . . 422 387 407 . . . . . . . . . . Slashing 17786 | . . . . . . . . . . . 154 . . . . 124 107 . . . . . 315 . . . . . 36 . . 410 . . . 11209 2200 1756 1475 Piercing . | . . . . . . . . . . . . . . . . . . . . . . . . . . . . . . . . . . . . . . . . Highest Corruption 27 | . . . 1 1 1 . 1 . . . 2 . . . . . 4 1 5 5 5 . . . . . 15 8 5 . . 27 10 3 9 17 10 2 10 Average Corruption 4 | . . . 1 1 1 . 1 . . . 1 . . . . . 2 1 3 5 4 . . . . . 11 2 2 . . 4 4 1 5 5 10 2 7 Corruption Purged 74 | . . . . . 1 . 1 . . . 2 . . . . . 5 2 . . 5 . . . . . 15 . 5 . . 31 7 . . . . . . Corruption Blocked 21 | . . . . . . . . . . . . . . . . . . . . . . . . . . . . . . . . . . . . 10 . 11 . Effects 793 | . . . 19 3 17 . 8 . . . 7 . . . . . 39 5 37 24 18 . . . . . 43 46 26 . . 89 31 1 48 96 164 4 68 Message Errors 173 | . . . 3 1 5 . 2 . . . 1 . . . . . 4 . 10 3 4 . . . . . 7 11 9 . . 15 6 . 12 31 38 . 11 Matter Fused 188 | . . . 6 . 3 . . . . . 1 . . . . . 12 1 7 6 3 . . . . . 11 13 5 . . 21 11 1 12 24 31 3 17 Heat Flow Errors 88 | . . . 2 . 2 . 3 . . . 1 . . . . . 3 1 3 1 2 . . . . . 6 3 . . . 9 2 . 3 11 23 1 12 Energy Discharges 109 | . . . 2 1 2 . 2 . . . 1 . . . . . 9 2 7 6 4 . . . . . 5 1 3 . . 8 5 . 5 13 22 . 11 Parts Rejected 15 | . . . . 1 . . . . . . . . . . . . . . 2 1 1 . . . . . . 2 . . . 1 1 . 1 2 2 . 1 Parts Fused 5 | . . . . . . . 1 . . . 1 . . . . . . . . . . . . . . . . . . . . 2 . . . 1 . . . Data Loss (minor) 99 | . . . 2 . 5 . . . . . 2 . . . . . 2 1 6 2 1 . . . . . 7 13 5 . . 8 . . 9 10 20 . 6 Data Loss (major) 38 | . . . 1 . . . . . . . . . . . . . 3 . . 1 1 . . . . . 4 1 2 . . 7 2 . 1 2 11 . 2 Misfires 29 | . . . 2 . . . . . . . . . . . . . 3 . . 2 1 . . . . . 2 . . . . 2 1 . 3 1 10 . 2 Alerts 18 | . . . 1 . . . . . . . . . . . . . 2 . 1 . . . . . . . 1 . . . . 5 1 . 2 1 4 . . Weapon Failures 31 | . . . . . . . . . . . . . . . . . 1 . 1 2 1 . . . . . . 2 2 . . 11 2 . . . 3 . 6 Overload Shots . | . . . . . . . . . . . . . . . . . . . . . . . . . . . . . . . . . . . . . . . . Overflow Damage 7351 | . 14 . 3 . . . . . . . 24 9 . . 16 84 628 425 69 . . . 787 . . . 155 1057 665 6 37 378 303 73 285 760 1123 172 278 Projectiles 4805 | . . . 3 . . . . . . . . . . . 16 84 580 425 . . . . . . . . . 742 575 6 37 378 303 73 235 98 879 93 278 Explosions 493 | . 14 . . . . . . . . . . 9 . . . . 42 . 69 . . . . . . . 1 136 . . . . . . . 152 70 . . Melee 2053 | . . . . . . . . . . . 24 . . . . . 6 . . . . . 787 . . . 154 179 90 . . . . . 50 510 174 79 . Knockbacks 36 | . . . . . . . . . . . . . . . . . . . 1 . . . 8 . . . . 4 5 . . . . . . . . . 18 Impact 14 | . . . . . . . . . . . . . . . . . . . 1 . . . 7 . . . . 1 5 . . . . . . . . . . Kinetic 20 | . . . . . . . . . . . . . . . . . . . . . . . . . . . . 3 . . . . . . . . . . 17 Secondary 2 | . . . . . . . . . . . . . . . . . . . . . . . 1 . . . . . . . . . . . . . . . 1 Self-Inflicted Damage 1338 | . 64 . 30 . . . . . . . . 72 . . . . 185 40 84 . 18 . . . . . 113 301 116 . . 49 50 . . 120 96 . . Shots 42 | . 2 . 1 . . . . . . . . 4 . . . . 4 1 2 . . . . . . . 9 10 2 . . 2 1 . . 2 2 . . Rammed 7 | . . . . . . . . 3 . . . . . . . . . . 3 . 1 . . . . . . . . . . . . . . . . . . Targets Rammed 14 | . . . . 2 . . 1 3 . . . . . . 4 . . . 3 . 1 . . . . . . . . . . . . . . . . . . Kicked 7 | . . . . 2 . . 1 . . . . . . . 4 . . . . . . . . . . . . . . . . . . . . . . . . Crushed . | . . . . . . . . . . . . . . . . . . . . . . . . . . . . . . . . . . . . . . . . Highest Temperature 439 | . 216 349 147 . 247 108 262 439 92 . 111 409 150 144 434 . 224 199 300 236 186 338 142 142 142 . 258 242 11 . . 203 39 . 17 402 142 133 178 Average Temperature 75 | . 72 139 27 . 60 48 57 121 69 . 29 40 63 80 108 . 86 51 75 82 65 85 62 75 77 . 71 76 5 . . 87 26 . 12 121 71 86 70 Received Heat Transfer 17025 | . 219 144 396 87 . . 216 1134 18 . 780 327 70 . 1210 9 363 1296 1213 645 156 81 361 45 243 . 195 1553 903 177 45 255 315 9 621 996 819 192 1932 Effects 8 | . . . . . . . 1 4 . . . . . . 1 . . . . . . 1 . . . . . . . . . . . . . 1 . . . Shutdowns 2 | . . . . . . . . 1 . . . . . . . . . . . . . 1 . . . . . . . . . . . . . . . . . Energy Bleed 3 | . . . . . . . . 2 . . . . . . 1 . . . . . . . . . . . . . . . . . . . . . . . . Interference 2 | . . . . . . . 1 1 . . . . . . . . . . . . . . . . . . . . . . . . . . . . . . . Matter Decay 1 | . . . . . . . . . . . . . . . . . . . . . . . . . . . . . . . . . . . . 1 . . . Siege Activations . | . . . . . . . . . . . . . . . . . . . . . . . . . . . . . . . . . . . . . . . . Robots Corrupted 11 | . . . . . . . . . . . . 2 . . . . . 1 3 1 . . . . . . . 4 . . . . . . . . . . . Combat Hostiles 9 | . . . . . . . . . . . . 2 . . . . . 1 2 . . . . . . . . 4 . . . . . . . . . . . Parts Fried 80 | . 1 . 1 . . . . . . . . 6 2 . . . . 2 23 1 2 . 18 1 . . 2 13 5 . . 1 . . . . . 2 . Impact Corruptions 35 | . . . . . . . . . . . . . . . . . . . . . . . 24 . . . 3 2 5 . . . . . . . . . 1 Robots Melted 22 | . . . 1 . 1 . . 2 . . 3 . . . 1 . . . 1 1 1 . 1 . 5 . 4 1 . . . . . . . . . . . Combat Hostiles 21 | . . . 1 . . . . 2 . . 3 . . . 1 . . . 1 1 1 . 1 . 5 . 4 1 . . . . . . . . . . . Parts Melted 207 | . . 1 3 1 14 . 6 12 . . 27 . 4 . 11 . 3 4 14 8 4 2 10 1 26 . 12 21 5 . 2 6 3 . 1 1 2 1 2 Heat Transferred 95521 | . 398 703 2004 481 1247 222 3996 5038 74 . 8140 1038 2812 111 2921 100 4627 2835 6775 5150 1100 1550 2150 2500 3300 . 2225 12182 5333 600 625 4181 2800 623 2404 770 2035 799 1672 Parts Sabotaged 8 | . . . . . . . . . . . . . . . . . . . 3 . . . . . . . . . . . . . . . . . 2 . 3 Parts Stolen 2 | . . . . . . . . . . . . . 2 . . . . . . . . . . . . . . . . . . . . . . . . . . Parts Stripped . | . . . . . . . . . . . . . . . . . . . . . . . . . . . . . . . . . . . . . . . . Power Chain Reactions 14 | . 2 . 1 . . . . . . . . 2 . . . . . 1 3 1 . . . . . . . 4 . . . . . . . . . . . Missiles Intercepted 3 | . . . . . . . . . . . . . . . . . . . . . . . . . . . . . . . . . . . . . . 3 . Alert | -11 -10 -10 -9 -9 -9 -8 -8 -8 -7 -7 -7 -7 -7 -7 -7 -6 -6 -6 -6 -6 -6 -6 -5 -5 -5 -5 -4 -4 -4 -4 -3 -3 -3 -2 -2 -2 -2 -1 -1 ------- Run | Jun Mat Min Mat Min Exi Min Mat Sto Fac Was Fac Low Low Zio Dee Pro Fac Gar Fac Gar Fac DSF Fac Upp Upp Zhi Pro Fac Arm Lab Res Tes Gar Res Qua Sec Gar Acc Com Peak Influence 9737 | . 251 45 266 100 . 130 634 694 240 10 486 . . . . . 458 2138 1687 2373 1085 854 572 . . . . 956 1300 . 403 416 1826 1222 440 1595 4026 2823 9737 Initial 2113 | . . . . . . . . 2 . 10 . . . . . . 13 181 972 1041 1079 654 388 . . . . 468 144 . . 56 32 894 30 104 400 2113 1475 Average 712 | . 71 15 97 38 . 50 306 157 55 6 138 . . . . . 182 1073 966 1676 1043 810 262 . . . . 412 562 . 157 178 1008 822 227 410 2363 2472 6489 Maximum Alert Level 5 | . 1 . 1 . . . 2 2 1 . 2 . . . . . 2 5 5 5 3 3 2 . . . . 3 4 . 2 2 5 4 2 4 5 5 5 Low Security (%) 40 | . 90 100 92 100 . 100 32 73 85 100 72 . . . . . 53 2 . . . . 34 . . . . 25 10 . 64 57 11 24 40 30 . . . Level 1 21 | . 9 . 7 . . . 29 1 14 . 26 . . . . . 41 18 3 . . . 37 . . . . 25 31 . 33 41 6 . 55 34 . . . Level 2 12 | . . . . . . . 37 24 . . 1 . . . . . 5 19 21 . . 17 27 . . . . 29 28 . 1 1 8 . 3 21 5 . . Level 3 7 | . . . . . . . . . . . . . . . . . . 6 36 4 100 82 . . . . . 19 19 . . . 22 59 . 4 6 . . Level 4 6 | . . . . . . . . . . . . . . . . . . 27 36 47 . . . . . . . . 10 . . . 34 15 . 9 14 . 1 Level 5 8 | . . . . . . . . . . . . . . . . . . 25 1 48 . . . . . . . . . . . . 15 . . . 74 100 16 High Security 2 | . . . . . . . . . . . . . . . . . . . . . . . . . . . . . . . . . . . . . . . 81 Max Security . | . . . . . . . . . . . . . . . . . . . . . . . . . . . . . . . . . . . . . . . . Sterilizations 1 | . . . . . . . . . . . . . . . . . . . . . . 1 . . . . . . . . . . . . . . . . . Squads Dispatched 255 | . . . 2 . . . 7 7 1 . 22 . . . . . 19 . 21 . 3 2 8 . . . 1 18 10 . 4 29 . 4 14 36 . 10 37 Investigation 19 | . . . . . . . 2 2 . . 4 . . . . . 3 . 3 . . . 2 . . . . . . . . 1 . . 1 1 . . . Extermination 76 | . . . . . . . . . 1 . 11 . . . . . 9 . 5 . . . 4 . . . . 6 7 . 2 12 . 2 5 11 . 1 . Reinforcement 36 | . . . 2 . . . 1 1 . . 7 . . . . . 4 . 5 . . 2 1 . . . . 7 . . . 2 . 1 1 . . 1 1 Assault 64 | . . . . . . . 1 2 . . . . . . . . . . 2 . 3 . 1 . . . 1 4 3 . . . . 1 . 5 . 5 36 Garrison 17 | . . . . . . . 3 2 . . . . . . . . 3 . 6 . . . . . . . . 1 . . . 1 . . . 1 . . . Intercept 43 | . . . . . . . . . . . . . . . . . . . . . . . . . . . . . . . 2 13 . . 7 18 . 3 . Searches Triggered 2 | . . . . . . . . . . . . . . . . . . . . . . . . . . . . 1 . . . . . . . 1 . . . Construction Impeded 1 | . . . . . . . . . . . . . . . . . . . 1 . . . . . . . . . . . . . . . . . . . . Haulers Reinforced 7 | . . . . . . . . . . . . . . . . . 2 . 2 . . . 1 . . . . 1 . . . 1 . . . . . . . Active Scanning Responses . | . . . . . . . . . . . . . . . . . . . . . . . . . . . . . . . . . . . . . . . . Cargo Convoy Interrupts 3 | . . . . . . . . . . . 1 . . . . . 1 . 1 . . . . . . . . . . . . . . . . . . . . Stealth | -11 -10 -10 -9 -9 -9 -8 -8 -8 -7 -7 -7 -7 -7 -7 -7 -6 -6 -6 -6 -6 -6 -6 -5 -5 -5 -5 -4 -4 -4 -4 -3 -3 -3 -2 -2 -2 -2 -1 -1 --------- Run | Jun Mat Min Mat Min Exi Min Mat Sto Fac Was Fac Low Low Zio Dee Pro Fac Gar Fac Gar Fac DSF Fac Upp Upp Zhi Pro Fac Arm Lab Res Tes Gar Res Qua Sec Gar Acc Com Distress Signals 43 | . 2 . 6 . . . 2 3 . . . . . . . . 2 . 1 . . . . . . . . 3 5 . . 2 . . . 4 . . 13 Communications Jammed 348 | . . . . . . . . . 9 . 47 . . . . . 63 . 102 . . 8 10 . . . 1 52 33 . . 23 . . . . . . . Distress Signals 292 | . . . . . . . . . 9 . 26 . . . . . 55 . 95 . . 1 10 . . . . 43 30 . . 23 . . . . . . . Times Spotted 1771 | . 12 4 49 5 16 6 39 46 4 . 69 24 25 1 22 2 80 43 101 41 9 10 42 21 15 . 18 129 80 10 7 77 43 13 50 158 66 36 398 Peak Tracking Total 47 | . 3 2 6 3 11 3 4 8 1 . 4 9 5 1 6 1 7 7 8 12 5 2 7 5 6 . 8 7 8 10 2 9 8 4 8 14 14 9 47 Tactical Retreats 78 | . . . 3 . 5 1 . . . . 1 2 1 . 2 . . 8 9 . . 2 2 . . . 3 7 3 . . 3 2 . . 8 2 . 14 Traps | -11 -10 -10 -9 -9 -9 -8 -8 -8 -7 -7 -7 -7 -7 -7 -7 -6 -6 -6 -6 -6 -6 -6 -5 -5 -5 -5 -4 -4 -4 -4 -3 -3 -3 -2 -2 -2 -2 -1 -1 ------- Run | Jun Mat Min Mat Min Exi Min Mat Sto Fac Was Fac Low Low Zio Dee Pro Fac Gar Fac Gar Fac DSF Fac Upp Upp Zhi Pro Fac Arm Lab Res Tes Gar Res Qua Sec Gar Acc Com Traps Triggered 43 | . 3 . 1 . . . 2 1 1 . . . . . . . . 5 . 4 . 7 1 . . . . . 2 . . 6 2 . 1 2 4 . 1 Indirectly 1 | . . . . . . . . . . . . . . . . . . . . . . . . . . . . . . . . 1 . . . . . . . Trap Hack Attempts 88 | . . . . . . . . . . . . . . . . . . . . 5 . 1 33 . . . . . . . . . 49 . . . . . . Triggered . | . . . . . . . . . . . . . . . . . . . . . . . . . . . . . . . . . . . . . . . . Disarmed 3 | . . . . . . . . . . . . . . . . . . . . 1 . . 1 . . . . . . . . . 1 . . . . . . Reprogrammed 35 | . . . . . . . . . . . 6 . . . . . . . . . . 1 9 . . . . . 14 . . . 5 . . . . . . Reused 18 | . . . . . . . . . . . . . . . . . . . . . . . . . . . . 9 3 4 . 1 . . . . . . 1 Traps Reconfigurated 3 | . . . . . . . . . . . . . . . . . . . . . . . . . . . . . . . . . . . . . . . 3 Traps Extracted 17 | . . . . . . . . . . . . . . . . . . . . . . . 9 . . . . . 6 2 . . . . . . . . . Installed 19 | . . . . . . . . . . . . . . . . . . . . . . . . . . . . 11 . 6 . 2 . . . . . . . Triggered 22 | . . . . . . . . . . . . . 1 . . 1 . . 2 . . . . . 2 . 2 9 3 . . 1 . . . . . . 1 Most Traps Carried 28 | . . . . . . . . . . . . . . . . . . 4 4 4 4 15 24 24 24 24 28 28 23 21 19 19 13 13 13 8 . . . Exploded 3 | . . . . . 3 . . . . . . . . . . . . . . . . . . . . . . . . . . . . . . . . . . Machines | -11 -10 -10 -9 -9 -9 -8 -8 -8 -7 -7 -7 -7 -7 -7 -7 -6 -6 -6 -6 -6 -6 -6 -5 -5 -5 -5 -4 -4 -4 -4 -3 -3 -3 -2 -2 -2 -2 -1 -1 ---------- Run | Jun Mat Min Mat Min Exi Min Mat Sto Fac Was Fac Low Low Zio Dee Pro Fac Gar Fac Gar Fac DSF Fac Upp Upp Zhi Pro Fac Arm Lab Res Tes Gar Res Qua Sec Gar Acc Com Machines Disabled 177 | . . . 2 . 8 . 2 7 . . 11 2 1 2 1 . 29 9 7 7 . . 2 1 3 . . 6 18 4 . 13 11 1 8 7 9 2 4 Max in Single Turn 10 | . . . 1 . 2 . 1 1 . . 5 1 1 1 1 . 10 1 2 1 . . . . 1 . . 1 4 1 . 2 1 1 1 1 2 2 1 Garrison Access 8 | . . . . . . . 1 1 . . . . . . . . 1 . 1 . . . 1 . . . . 2 . . . . . . . . . 1 . Garrison Relay 20 | . . . . . . . . . . . . . . . . . . 4 . 3 . . . . . . . . . . . . 8 . . . 5 . . Phase Generator 3 | . . . . . . . . . . . . . . . . . . . . 1 . . . . . . . . . . . . 1 . . . 1 . . Machines Repaired . | . . . . . . . . . . . . . . . . . . . . . . . . . . . . . . . . . . . . . . . . Machines Sabotaged . | . . . . . . . . . . . . . . . . . . . . . . . . . . . . . . . . . . . . . . . . Overloaded Fab Kills . | . . . . . . . . . . . . . . . . . . . . . . . . . . . . . . . . . . . . . . . . Hacking | -11 -10 -10 -9 -9 -9 -8 -8 -8 -7 -7 -7 -7 -7 -7 -7 -6 -6 -6 -6 -6 -6 -6 -5 -5 -5 -5 -4 -4 -4 -4 -3 -3 -3 -2 -2 -2 -2 -1 -1 --------- Run | Jun Mat Min Mat Min Exi Min Mat Sto Fac Was Fac Low Low Zio Dee Pro Fac Gar Fac Gar Fac DSF Fac Upp Upp Zhi Pro Fac Arm Lab Res Tes Gar Res Qua Sec Gar Acc Com Machines Accessed 237 | . 7 . 13 . 2 . 11 13 3 . 23 1 1 1 . . 28 3 14 3 3 . 12 . . 9 . 17 16 3 9 10 3 2 10 12 2 2 4 Terminals 150 | . 7 . 10 . . . 8 10 2 . 11 . . . . . 16 3 8 3 2 . 7 . . . . 10 12 . 6 7 3 1 7 10 2 1 4 Fabricators 14 | . . . . . . . . . . . 5 . . . . . 2 . . . . . 4 . . . . 1 2 . . . . . . . . . . Repair Stations 15 | . . . 1 . . . 1 1 . . 3 . . . . . 2 . 1 . . . . . . . . 2 1 . 2 1 . . . . . . . Recycling Units 7 | . . . . . . . . 1 . . . . . . . . 3 . 2 . . . . . . . . . 1 . . . . . . . . . . Scanalyzers 19 | . . . 2 . . . 2 . 1 . 1 . . . . . 2 . 1 . 1 . . . . . . 2 . . 1 1 . 1 3 1 . . . Garrison Access 15 | . . . . . . . . 1 . . 3 . . . . . 3 . 2 . . . 1 . . . . 2 . . . 1 . . . 1 . 1 . Total Hacks 2585 | . 26 . 110 . 24 . 118 103 72 . 317 1 1 5 . . 262 6 210 4 7 . 157 . . 47 . 237 219 20 147 102 7 60 75 132 12 83 21 Successful 1276 | . 17 . 76 . 24 . 83 61 23 . 149 1 1 5 . . 146 4 84 3 4 . 95 . . 47 . 111 92 20 53 46 3 9 35 55 4 18 7 Failed 1309 | . 9 . 34 . . . 35 42 49 . 168 . . . . . 116 2 126 1 3 . 62 . . . . 126 127 . 94 56 4 51 40 77 8 65 14 Catastrophic 295 | . 1 . 1 . . . 7 5 17 . 27 . . . . . 14 . 24 . . . 14 . . . . 30 33 . 30 13 . 15 8 12 4 33 7 Database Lockouts . | . . . . . . . . . . . . . . . . . . . . . . . . . . . . . . . . . . . . . . . . Manual 727 | . 3 . 17 . 2 . 33 16 26 . 103 . . . . . 96 . 57 . . . 67 . . . . 57 67 1 41 51 . 3 24 28 7 28 . Terminals 1622 | . 26 . 59 . . . 49 72 50 . 148 . . . . . 159 6 139 4 3 . 79 . . . . 146 183 . 124 78 7 53 57 83 12 64 21 Fabricators 110 | . . . . . . . . . . . 27 . . . . . 18 . . . . . 50 . . . . 8 7 . . . . . . . . . . Repair Stations 223 | . . . 4 . . . 11 26 . . 100 . . . . . 17 . 2 . . . . . . . . 11 26 . 14 12 . . . . . . . Recycling Units 35 | . . . . . . . . 1 . . . . . . . . 12 . 19 . . . . . . . . . 3 . . . . . . . . . . Scanalyzers 364 | . . . 47 . . . 58 . 22 . 23 . . . . . 32 . 42 . 4 . . . . . . 57 . . 9 3 . 7 18 42 . . . Garrison Access 133 | . . . . . . . . 4 . . 19 . . . . . 24 . 8 . . . 28 . . . . 15 . . . 9 . . . 7 . 19 . Terminal Hacks 590 | . 16 . 26 . 24 . 20 27 8 . 40 1 1 5 . . 57 4 38 3 2 . 37 . . 47 . 39 56 20 26 20 3 6 15 28 2 12 7 Record 85 | . . . 1 . 23 . . . . . . . . . . . . . . . . . 1 . . 36 . . 1 19 1 . . . 1 1 . 1 . Part Schematic 77 | . . . . . . . . 5 . . 6 . . 5 . . 15 . 8 . . . 8 . . 3 . 8 9 . 2 4 . 1 . 3 . . . Robot Schematic 16 | . . . . . . . . 1 . . 3 . . . . . 4 . 1 . . . 1 . . . . 3 1 . . 1 . . . 1 . . . Robot Analysis 33 | . . . 1 . . . . 2 . . 2 . . . . . 5 . . . . . 2 . . 4 . 5 3 . 2 . . 2 . 3 . 2 . Prototype ID Bank 56 | . 4 . 3 . . . 3 3 2 . 3 . . . . . 7 . 5 . . . 4 . . 4 . 2 2 . 2 2 . 1 3 4 . 1 1 Open Door 7 | . . . . . . . . 2 . . . 1 1 . . . . . . 1 . . . . . . . . . . . . . . . 2 . . . Open DSF 4 | . . . . . . . . . . . 1 . . . . . . . . . 2 . 1 . . . . . . . . . . . . . . . . Level Access Points 9 | . . . 1 . . . 1 1 . . . . . . . . 1 . 1 . . . . . . . . 1 1 . 1 . . . . 1 . . . Branch Access Points 15 | . 1 . 1 . . . 1 1 . . 1 . . . . . 1 . 1 . . . 1 . . . . 1 2 . 1 1 . . . 1 . 1 . Emergency Access Points 11 | . . . . . . . 1 . . . 1 . . . . . . 1 . 1 . . 1 . . . . 1 3 . . . 1 . . . 1 . . Machine Index 10 | . . . . . . . . . . . 1 . . . . . . . 1 . . . 1 . . . . 1 1 . 1 1 . . 1 1 . 1 . Terminal Index 15 | . 2 . 1 . . . . 1 1 . 1 . . . . . 1 . 1 . . . . . . . . 1 1 . 1 1 . . . 1 . 1 1 Fabricator Index 6 | . . . . . . . 1 . 1 . . . . . . . . . . . . . . . . . . . 2 . 1 . . . . 1 . . . Repair Station Index 1 | . . . . . . . . . . . . . . . . . . . . . . . . . . . . 1 . . . . . . . . . . . Scanalyzer Index 5 | . . . 1 . . . . . 1 . . . . . . . . . . . . . 1 . . . . . 1 . . . . . 1 . . . . Garrison Index 5 | . . . . . . . . . . . . . . . . . . . 1 . . . . . . . . . 2 . . . . . 1 1 . . . Alert Level 19 | . . . 1 . . . 2 . . . 3 . . . . . 4 . . . . . 1 . . . . 4 2 . 1 . . . . 1 . . . Unreport Threat 28 | . . . . . . . . 5 . . 2 . . . . . . . 5 . . . 4 . . . . . 7 . 3 . . . 1 . . 1 . Locate Traps 37 | . 1 . 6 . . . 1 2 . . 2 . . . . . 7 . 3 . . . 1 . . . . 3 3 . 3 1 . . 2 . . 1 1 Reprogram Traps 6 | . . . . . . . . . . . 2 . . . . . . . . . . . 1 . . . . . 3 . . . . . . . . . . Dispatch Records 12 | . 1 . 1 . . . . . . . 1 . . . . . 2 . 1 . . . 1 . . . . 2 2 . . . . . . 1 . . . Security Status 1 | . . . . . . . . . . . . . . . . . . . . . . . . . . . . . . . . . . . . 1 . . . Surveillance Status 3 | . 1 . . . . . . . . . . . . . . . . . . . . . 1 . . . . . . . 1 . . . . . . . . Patrol Status 2 | . 1 . . . . . . . . . . . . . . . . . . . . . 1 . . . . . . . . . . . . . . . . Transport Status 3 | . . . . . . . . . . . 2 . . . . . . . . . . . 1 . . . . . . . . . . . . . . . . Recall Investigation 4 | . . . . . . . 1 . . . . . . . . . 2 . 1 . . . . . . . . . . . . . . . . . . . . Recall Extermination 5 | . . . . . . . . . . . 2 . . . . . 1 . . . . . . . . . . . 1 . . 1 . . . . . . . Recall Reinforcements 4 | . . . . . . . . . . . 2 . . . . . . . 1 . . . . . . . . . . . . 1 . . . . . . . Recall Assault 1 | . . . . . . . 1 . . . . . . . . . . . . . . . . . . . . . . . . . . . . . . . . Hauler Manifests 22 | . 1 . 4 . . . 1 1 1 . . . . . . . 3 . 2 . . . 1 . . . . 2 3 . . 1 . . 1 1 . . . Registered Components 17 | . 1 . 1 . . . 2 1 1 . 1 . . . . . 1 . 1 . . . 1 . . . . 1 1 . 1 . . . 1 1 . 1 1 Registered Prototypes 15 | . . . 1 . . . 2 1 . . 1 . . . . . . . 1 . . . 1 . . . . 1 1 . 1 1 . 1 . 1 . 1 1 Zone Layout 43 | . 3 . 3 . . . 3 1 1 . 3 . . . . . 3 . 4 . . . 2 . . . . 2 4 . 4 3 . 1 3 2 . 1 . Garrison Registry 4 | . . . . . . . . . . . . . . . . . . 2 . 1 . . . . . . . . . . . . 1 . . . . . . Patrol Navigation 2 | . . . . . . . . . . . . . . . . . . . . . . . . . . . . . . . . . 1 . . . 1 . . Security Stations 1 | . . . . . . . . . . . . . . . . . . 1 . . . . . . . . . . . . . . . . . . . . . EX-Prototype ID Bank 1 | . . . . . 1 . . . . . . . . . . . . . . . . . . . . . . . . . . . . . . . . . . Protovariant Controls 2 | . . . . . . . . . . . . . . . . . . . . . . . . . . . . . . . . 2 . . . . . . . Disengage Seal 2 | . . . . . . . . . . . . . . . . . . . . . . . . . . . . . . . . . . . . . . . 2 Release Object 1 | . . . . . . . . . . . . . . . . . . . . . . . . . . . . . . 1 . . . . . . . . . Fabricator Hacks 58 | . . . . . . . . . . . 10 . . . . . 7 . . . . . 34 . . . . 5 2 . . . . . . . . . . Network Status 9 | . . . . . . . . . . . 3 . . . . . 1 . . . . . 3 . . . . 1 1 . . . . . . . . . . Load Schematic 24 | . . . . . . . . . . . 4 . . . . . 3 . . . . . 15 . . . . 2 . . . . . . . . . . . Build 25 | . . . . . . . . . . . 3 . . . . . 3 . . . . . 16 . . . . 2 1 . . . . . . . . . . Repair Station Hacks 137 | . . . 4 . . . 10 25 . . 52 . . . . . 10 . 2 . . . . . . . . 7 13 . 8 6 . . . . . . . Scan Component 72 | . . . 2 . . . 5 13 . . 27 . . . . . 5 . 1 . . . . . . . . 4 7 . 4 4 . . . . . . . Repair 65 | . . . 2 . . . 5 12 . . 25 . . . . . 5 . 1 . . . . . . . . 3 6 . 4 2 . . . . . . . Recycling Unit Hacks 9 | . . . . . . . . . . . . . . . . . 4 . 4 . . . . . . . . . 1 . . . . . . . . . . Report Inventory 4 | . . . . . . . . . . . . . . . . . 2 . 1 . . . . . . . . . 1 . . . . . . . . . . Retrieve Components 5 | . . . . . . . . . . . . . . . . . 2 . 3 . . . . . . . . . . . . . . . . . . . . Scanalyzer 228 | . . . 41 . . . 48 . 11 . 13 . . . . . 23 . 20 . 2 . . . . . . 36 . . 5 2 . 2 8 17 . . . Insert Component 104 | . . . 17 . . . 21 . 5 . 6 . . . . . 10 . 8 . 1 . . . . . . 13 . . 4 1 . 1 8 9 . . . Analyze 124 | . . . 24 . . . 27 . 6 . 7 . . . . . 13 . 12 . 1 . . . . . . 23 . . 1 1 . 1 . 8 . . . Garrison Access Hacks 16 | . . . . . . . . . . . 3 . . . . . 4 . 3 . . . 1 . . . . 2 . . . 1 . . . 1 . 1 . Unlock Access 8 | . . . . . . . . . . . 3 . . . . . 2 . 1 . . . . . . . . . . . . 1 . . . 1 . . . Seal Access 6 | . . . . . . . . . . . . . . . . . 1 . 1 . . . 1 . . . . 2 . . . . . . . . . 1 . Coupler Status 2 | . . . . . . . . . . . . . . . . . 1 . 1 . . . . . . . . . . . . . . . . . . . . Unauthorized Hacks 236 | . 1 . 5 . . . 5 8 4 . 31 . . . . . 41 . 17 . . . 22 . . . . 22 20 . 14 17 . 1 12 9 2 5 . Terminals 154 | . 1 . 5 . . . 4 4 4 . 15 . . . . . 23 . 12 . . . 8 . . . . 14 16 . 14 13 . 1 10 5 2 3 . Track 30 | . . . . . . . . . . . 4 . . . . . 7 . 3 . . . 1 . . . . 3 4 . 3 3 . . 1 1 . . . Assimilate 28 | . . . 1 . . . 1 . . . 2 . . . . . 5 . 2 . . . 2 . . . . 3 1 . 4 3 . . 3 . . 1 . Botnet 70 | . 1 . 2 . . . 1 3 2 . 6 . . . . . 10 . 6 . . . 3 . . . . 6 7 . 6 5 . 1 5 3 2 1 . Disrupt 3 | . . . 1 . . . . . . . . . . . . . . . . . . . 1 . . . . . 1 . . . . . . . . . . Operators 23 | . . . 1 . . . 2 1 2 . 3 . . . . . 1 . 1 . . . 1 . . . . 2 3 . 1 2 . . 1 1 . 1 . Fabricators 26 | . . . . . . . . . . . 5 . . . . . 4 . . . . . 12 . . . . 3 2 . . . . . . . . . . Report 8 | . . . . . . . . . . . 1 . . . . . 1 . . . . . 4 . . . . 1 1 . . . . . . . . . . Prioritize 8 | . . . . . . . . . . . 2 . . . . . 1 . . . . . 4 . . . . 1 . . . . . . . . . . . Haulers 9 | . . . . . . . . . . . 1 . . . . . 2 . . . . . 4 . . . . 1 1 . . . . . . . . . . Recompile 1 | . . . . . . . . . . . 1 . . . . . . . . . . . . . . . . . . . . . . . . . . . . Repair Stations . | . . . . . . . . . . . . . . . . . . . . . . . . . . . . . . . . . . . . . . . . Recycling Units 11 | . . . . . . . . 1 . . . . . . . . 4 . 4 . . . . . . . . . 2 . . . . . . . . . . Reject 3 | . . . . . . . . . . . . . . . . . 1 . 1 . . . . . . . . . 1 . . . . . . . . . . Mask 4 | . . . . . . . . 1 . . . . . . . . 1 . 1 . . . . . . . . . 1 . . . . . . . . . . Tunnel 4 | . . . . . . . . . . . . . . . . . 2 . 2 . . . . . . . . . . . . . . . . . . . . Scanalyzers 3 | . . . . . . . 1 . . . . . . . . . . . . . . . . . . . . . . . . . . . 2 . . . . Researchers 2 | . . . . . . . . . . . . . . . . . . . . . . . . . . . . . . . . . . . 2 . . . . Extract 1 | . . . . . . . 1 . . . . . . . . . . . . . . . . . . . . . . . . . . . . . . . . Garrison Access 42 | . . . . . . . . 3 . . 11 . . . . . 10 . 1 . . . 2 . . . . 5 . . . 4 . . . 4 . 2 . Broadcast 13 | . . . . . . . . 1 . . 3 . . . . . 3 . . . . . 1 . . . . 2 . . . 1 . . . 1 . 1 . Decoy 2 | . . . . . . . . . . . 1 . . . . . . . . . . . . . . . . 1 . . . . . . . . . . . Redirect 4 | . . . . . . . . 1 . . . . . . . . 1 . . . . . . . . . . . . . . 1 . . . 1 . . . Reprogram 4 | . . . . . . . . . . . 1 . . . . . 2 . 1 . . . . . . . . . . . . . . . . . . . . Intercept 6 | . . . . . . . . . . . 3 . . . . . 1 . . . . . . . . . . . . . . 1 . . . 1 . . . Watchers 13 | . . . . . . . . 1 . . 3 . . . . . 3 . . . . . 1 . . . . 2 . . . 1 . . . 1 . 1 . Data Cores Recovered 9 | . . . . . . . . 1 . . 1 . . . . . . . 2 . 1 . 2 . . . . . . . . . . . . 1 . . 1 Used 6 | . . . . . . . . 1 . . 1 . . . . . . . 1 . . . 1 . . . . . . . . . . . . 1 . . 1 Hacking Detections 227 | . 6 . 19 . . . 5 6 8 . 26 . . . . . 13 . 19 . . . 15 . . . . 12 25 . 20 10 . 6 11 5 5 14 2 Full Trace Events 6 | . . . 1 . . . . . . . 2 . . . . . . . . . . . 2 . . . . . . . . 1 . . . . . . . Feedback Events . | . . . . . . . . . . . . . . . . . . . . . . . . . . . . . . . . . . . . . . . . Feedback Blocked . | . . . . . . . . . . . . . . . . . . . . . . . . . . . . . . . . . . . . . . . . Robot Schematics Acquired 21 | . . . . . . . . 1 . . 3 . . 1 . . 4 . 1 . . . 1 . . . . 3 1 . . 1 . . . 5 . . . Robots Built 20 | . . . . . . . . . . . 1 . . . . . 5 . . . . . 12 . . . . . 2 . . . . . . . . . . Authchips 12 | . . . . . . . . . . . 1 . . . . . 3 . . . . . 8 . . . . . . . . . . . . . . . . Time 761 | . . . . . . . . . . . 38 . . . . . 113 . . . . . 423 . . . . . 187 . . . . . . . . . . Total Robot Build Rating 110 | . . . . . . . . . . . 3 . . . . . 27 . . . . . 66 . . . . . 14 . . . . . . . . . . Part Schematics Acquired 201 | . . . 17 . . . 19 5 5 . 12 . . 19 . . 25 . 15 . 1 . 8 . . 3 . 18 9 . 3 7 . 2 . 33 . . . Parts Built 16 | . . . . . . . . . . . 2 . . . . . . . . . . . 12 . . . . 2 . . . . . . . . . . . Authchips 8 | . . . . . . . . . . . . . . . . . . . . . . . 6 . . . . 2 . . . . . . . . . . . Time 660 | . . . . . . . . . . . 64 . . . . . . . . . . . 462 . . . . 134 . . . . . . . . . . . Total Part Build Rating 94 | . . . . . . . . . . . 11 . . . . . . . . . . . 71 . . . . 12 . . . . . . . . . . . Parts Repaired 64 | . . . 2 . . . 5 12 . . 25 . . . . . 5 . 1 . . . . . . . . 2 6 . 4 2 . . . . . . . Time 3293 | . . . 70 . . . 371 683 . . 1294 . . . . . 219 . 62 . . . . . . . . 233 137 . 185 39 . . . . . . . Parts Recycled . | . . . . . . . . . . . . . . . . . . . . . . . . . . . . . . . . . . . . . . . . Recycled Matter . | . . . . . . . . . . . . . . . . . . . . . . . . . . . . . . . . . . . . . . . . Retrieved Matter . | . . . . . . . . . . . . . . . . . . . . . . . . . . . . . . . . . . . . . . . . Retrieved Components 34 | . . . . . . . . . . . . . . . . . 10 . 24 . . . . . . . . . . . . . . . . . . . . Parts Scanalyzed 83 | . . . 17 . . . 18 . 5 . 6 . . . . . 10 . 7 . 1 . . . . . . 10 . . 1 1 . 1 . 6 . . . Part Schematics Acquired 84 | . . . 17 . . . 18 . 5 . 6 . . . . . 10 . 7 . 1 . . . . . . 10 . . 1 1 . 1 . 7 . . . Parts Damaged 12 | . . . . . . . 2 . 1 . . . . . . . 3 . 1 . . . . . . . . 3 . . . . . 1 . 1 . . . Bothacking | -11 -10 -10 -9 -9 -9 -8 -8 -8 -7 -7 -7 -7 -7 -7 -7 -6 -6 -6 -6 -6 -6 -6 -5 -5 -5 -5 -4 -4 -4 -4 -3 -3 -3 -2 -2 -2 -2 -1 -1 ------------ Run | Jun Mat Min Mat Min Exi Min Mat Sto Fac Was Fac Low Low Zio Dee Pro Fac Gar Fac Gar Fac DSF Fac Upp Upp Zhi Pro Fac Arm Lab Res Tes Gar Res Qua Sec Gar Acc Com Used RIF Installer . | . . . . . . . . . . . . . . . . . . . . . . . . . . . . . . . . . . . . . . . . Robots Hacked 31 | . . . . . . . . . . . 3 . . . . . . . . . . . 1 . . 3 . 7 . . . 1 . 1 . 13 . . 2 Non-combat 11 | . . . . . . . . . . . 2 . . . . . . . . . . . 1 . . . . 4 . . . . . 1 . 3 . . . Combat 20 | . . . . . . . . . . . 1 . . . . . . . . . . . . . . 3 . 3 . . . 1 . . . 10 . . 2 Robot Hacks Applied 34 | . . . . . . . . . . . 4 . . . . . . . . . . . 1 . . 3 . 7 . . . 1 . 1 . 15 . . 2 parse_system 29 | . . . . . . . . . . . 2 . . . . . . . . . . . . . . 3 . 7 . . . 1 . 1 . 13 . . 2 no_distress 1 | . . . . . . . . . . . 1 . . . . . . . . . . . . . . . . . . . . . . . . . . . . find_fabricator 2 | . . . . . . . . . . . 1 . . . . . . . . . . . 1 . . . . . . . . . . . . . . . . find_station 1 | . . . . . . . . . . . . . . . . . . . . . . . . . . . . . . . . . . . . 1 . . . find_scanalyzer 1 | . . . . . . . . . . . . . . . . . . . . . . . . . . . . . . . . . . . . 1 . . . Relay Couplers Released 79 | . . . . . . . 1 1 . . . . . . . . . 12 . 11 . . . . . . . . . . . . 32 . . 3 19 . . Machine Destruction 76 | . . . . . . . 1 1 . . . . . . . . . 12 . 11 . . . . . . . . . . . . 32 . . . 19 . . Programmers 3 | . . . . . . . . . . . . . . . . . . . . . . . . . . . . . . . . . . . . 3 . . . Fabnet Peak Effective % . | . . . . . . . . . . . . . . . . . . . . . . . . . . . . . . . . . . . . . . . . Robots Rewired 32 | . . . . . . . . . . . . 5 1 . . . . 3 . . . . . 2 . . 2 . 10 . . . 6 . . . 3 . . Allies Hacked 8 | . . . . . . . . . . . 1 . . . . . . . . . . . 2 1 1 . . . . . . . 3 . . . . . . Hacks Repelled 3 | . . . . . . . . . . . . . . . . . . . . . . . 3 . . . . . . . . . . . . . . . . Allies | -11 -10 -10 -9 -9 -9 -8 -8 -8 -7 -7 -7 -7 -7 -7 -7 -6 -6 -6 -6 -6 -6 -6 -5 -5 -5 -5 -4 -4 -4 -4 -3 -3 -3 -2 -2 -2 -2 -1 -1 -------- Run | Jun Mat Min Mat Min Exi Min Mat Sto Fac Was Fac Low Low Zio Dee Pro Fac Gar Fac Gar Fac DSF Fac Upp Upp Zhi Pro Fac Arm Lab Res Tes Gar Res Qua Sec Gar Acc Com Total Allies 169 | . . . . 4 . . . 13 . . 3 5 1 . . . 8 3 2 2 . . 15 3 1 . 2 2 22 . . . 6 . 2 . 3 . 72 Largest Group 35 | . . . . 4 3 1 . 13 10 6 6 4 4 3 3 . 7 3 2 2 . . 11 10 10 3 3 2 10 10 . . 6 . 1 . 3 3 35 Highest-Rated Group 1143 | . . . . 71 40 8 . 282 172 104 104 80 80 72 72 . 275 36 58 75 . . 508 377 377 88 95 95 481 481 . . 348 . 45 . 131 131 1143 Highest-Rated Ally 234 | . . . . 31 16 8 . 100 29 24 37 30 32 32 32 . 54 26 29 46 . . 54 54 54 43 48 48 68 58 . . 68 . 45 . 51 51 234 Warlord Squad Rendezvous 2 | . . . . . . . . . . . . . . . . . . . . . . . . . . . . . . . . . . . . . . 2 . Geek 2 | . . . . . . . . . . . . . . . . . . . . . . . . . . . . . . . . . . . . . . 2 . Total Orders 32 | . . . . . 4 . . 2 . . 4 . . . 2 . 5 . . . . . 1 . 6 1 . 4 . 1 . . . . . 2 . . . STAY 10 | . . . . . 2 . . 1 . . 1 . . . 1 . 2 . . . . . . . . . . 2 . 1 . . . . . . . . . FOLLOW 12 | . . . . . 2 . . 1 . . 2 . . . . . 2 . . . . . . . 3 . . 2 . . . . . . . . . . . GUARD 1 | . . . . . . . . . . . . . . . 1 . . . . . . . . . . . . . . . . . . . . . . . . AID 7 | . . . . . . . . . . . 1 . . . . . 1 . . . . . 1 . 3 1 . . . . . . . . . . . . . EXPLORE 1 | . . . . . . . . . . . . . . . . . . . . . . . . . . . . . . . . . . . . 1 . . . RETURN 1 | . . . . . . . . . . . . . . . . . . . . . . . . . . . . . . . . . . . . 1 . . . Ally Attacks 1034 | . . . . . 10 9 . 11 15 . 59 1 26 . 10 . 64 24 9 32 . . 134 52 36 . 17 . 96 . . . 31 . . . . 21 377 Total Damage 25304 | . . . . . 28 45 . 397 159 . 768 37 645 . 378 . 1966 266 139 598 . . 3222 1696 836 . 361 . 4341 . . . 1574 . . . . 383 7465 Kills 216 | . . . . . . 2 . 4 3 . 7 1 8 . 1 . 19 2 . 3 . . 29 17 5 . 2 . 24 . . . 8 . . . . 2 79 Allies Corrupted 10 | . . . . . . . . . . . . . . . . . . . . . . . . . . . 1 . 1 . . . 1 . . . . . 7 Allies Melted 1 | . . . . . 1 . . . . . . . . . . . . . . . . . . . . . . . . . . . . . . . . . . Turrets Deployed 1 | . . . . . . . . . . . . . 1 . . . . . . . . . . . . . . . . . . . . . . . . . . Intel | -11 -10 -10 -9 -9 -9 -8 -8 -8 -7 -7 -7 -7 -7 -7 -7 -6 -6 -6 -6 -6 -6 -6 -5 -5 -5 -5 -4 -4 -4 -4 -3 -3 -3 -2 -2 -2 -2 -1 -1 ------- Run | Jun Mat Min Mat Min Exi Min Mat Sto Fac Was Fac Low Low Zio Dee Pro Fac Gar Fac Gar Fac DSF Fac Upp Upp Zhi Pro Fac Arm Lab Res Tes Gar Res Qua Sec Gar Acc Com Robot Analysis Total 33 | . . . 1 . . . . 2 . . 2 . . . . . 5 . . . . . 2 . . 4 . 5 3 . 2 . . 2 . 3 . 2 . Derelict Logs Recovered 18 | . . 1 . 3 . . . . . . . 1 2 3 . 2 . . . . . . . 2 2 . 2 . . . . . . . . . . . . Drone Launches 2 | . . . . . . . . . . . . . . . . . . . . . . . . . . . . . . . . . . . . 2 . . . Drone Recoveries 2 | . . . . . . . . . . . . . . . . . . . . . . . . . . . . . . . . . . . . 2 . . . Exploration | -11 -10 -10 -9 -9 -9 -8 -8 -8 -7 -7 -7 -7 -7 -7 -7 -6 -6 -6 -6 -6 -6 -6 -5 -5 -5 -5 -4 -4 -4 -4 -3 -3 -3 -2 -2 -2 -2 -1 -1 ------------- Run | Jun Mat Min Mat Min Exi Min Mat Sto Fac Was Fac Low Low Zio Dee Pro Fac Gar Fac Gar Fac DSF Fac Upp Upp Zhi Pro Fac Arm Lab Res Tes Gar Res Qua Sec Gar Acc Com Turns Passed 85002 | . 1249 1347 2806 552 3690 766 3265 3576 916 586 5278 1254 1508 1556 4773 1098 6304 2663 2711 997 773 478 2996 1050 1144 570 2372 4094 2768 500 804 4702 1693 765 2120 4090 4219 883 2086 Spaces Moved 41980 | 1 538 489 881 410 2480 464 1416 1187 482 264 2073 833 1025 1045 2615 807 2853 1119 1234 550 528 242 1563 760 806 398 908 2120 2036 399 876 1782 642 296 1253 1974 1431 365 835 Core 167 | . . . . . . . . . . . . . . . 162 . . . 5 . . . . . . . . . . . . . . . . . . . . Treads 2314 | . . . 30 . . . 4 1173 482 264 355 . . . . . . . 6 . . . . . . . . . . . . . . . . . . . . Legs 32648 | 1 538 489 851 410 2480 464 1412 14 . . 1718 833 1025 1045 2012 807 2853 1119 397 . . . . . . . 230 2076 2036 399 876 1782 642 296 1253 1963 1431 365 831 Wheels 6395 | . . . . . . . . . . . . . . . . . . . 826 550 528 242 1563 760 806 398 678 44 . . . . . . . . . . . Hover 441 | . . . . . . . . . . . . . . . 441 . . . . . . . . . . . . . . . . . . . . . . . . Flight . | . . . . . . . . . . . . . . . . . . . . . . . . . . . . . . . . . . . . . . . . Fastest Speed 10 | 120 120 260 240 110 90 150 110 170 185 185 150 120 127 120 50 130 130 180 110 130 130 110 110 130 130 110 110 40 40 40 40 70 210 180 30 10 180 144 16 Average Speed 142 | 120 196 260 267 111 135 150 177 186 185 197 161 123 127 125 123 130 177 185 150 130 130 110 119 130 130 129 140 82 68 40 47 150 210 180 125 135 193 152 136 Slowest Speed 900 | 120 260 260 470 270 270 150 305 465 185 205 680 127 127 127 210 130 240 210 900 130 130 150 130 130 130 130 180 240 130 40 70 270 210 210 210 320 210 210 240 Overloaded Moves . | . . . . . . . . . . . . . . . . . . . . . . . . . . . . . . . . . . . . . . . . Propulsion Burnouts . | . . . . . . . . . . . . . . . . . . . . . . . . . . . . . . . . . . . . . . . . Robots Hopped 1 | . . . . . . . . . . . . . 1 . . . . . . . . . . . . . . . . . . . . . . . . . . Cave-ins Triggered 1 | . . . . . . . . . . . . . . . . . . . . . . . . . . . . . . . . . . . . 1 . . . Teleports 2 | . . . . . . . . . . . . . . . . . . . . . . . . . . . . . . . . . . . 1 1 . . . Spacefolds 5 | . . . . . . . . . . . . . . . . . . . . . . . . . . . . . . . . . . . . 4 . . 1 Exploration Rate (%) 72 | 2 80 98 90 69 92 99 95 93 14 96 56 85 97 86 91 96 76 95 33 81 7 91 40 94 94 62 92 45 93 99 24 94 87 11 89 86 99 13 37 Regions Visited 39 Branch Regions 20 Pre-discovered Areas 14 | . . 1 . 1 1 . . . . . . . . 1 . . 2 . 2 . . . . 2 . 3 1 . . . . . . . . . . . . Known Exits Taken 28 | . 1 . 1 . . 1 1 1 . . 1 1 1 1 1 1 1 . 1 . 1 . 1 1 1 1 1 1 1 1 1 1 . 1 1 1 . 1 . Unknown Exits Taken 4 | 1 . 1 . 1 1 . . . . . . . . . . . . . . . . . . . . . . . . . . . . . . . . . . Scrap Searched 31 | . . 1 . 1 . 1 . . . . . 2 10 3 . 5 . . . . . . . 1 2 . 5 . . . . . . . . . . . . Spaces Dug 193 | . . . . . . . . . . . 5 . . 2 3 4 39 . 5 . . . 9 . . . . 31 6 6 17 48 . 3 . 7 1 2 5 Terrain Destroyed 1331 | . 10 . 2 . 16 . 9 3 . . 8 10 9 3 12 10 158 51 48 125 . . 9 . . . 57 145 54 8 24 81 111 12 19 80 120 7 130 Melee 80 | . . . . . . . . . . . 5 . . 2 . . 8 . 5 . . . 9 . . . . 10 3 . 13 13 . 2 . 7 1 2 . Projectile 496 | . . . . . 2 . 9 3 . . . 2 9 1 12 10 41 37 9 . . . . . . . 1 64 34 3 11 65 33 10 19 4 23 5 89 AOE 692 | . 10 . 2 . 14 . . . . . 3 7 . . . . 109 11 23 125 . . . . . . 56 71 17 5 . . 78 . . 65 96 . . Terrain Rammed . | . . . . . . . . . . . . . . . . . . . . . . . . . . . . . . . . . . . . . . . . Walls Destroyed . | . . . . . . . . . . . . . . . . . . . . . . . . . . . . . . . . . . . . . . . . Machines Disabled . | . . . . . . . . . . . . . . . . . . . . . . . . . . . . . . . . . . . . . . . . Actions | -11 -10 -10 -9 -9 -9 -8 -8 -8 -7 -7 -7 -7 -7 -7 -7 -6 -6 -6 -6 -6 -6 -6 -5 -5 -5 -5 -4 -4 -4 -4 -3 -3 -3 -2 -2 -2 -2 -1 -1 --------- Run | Jun Mat Min Mat Min Exi Min Mat Sto Fac Was Fac Low Low Zio Dee Pro Fac Gar Fac Gar Fac DSF Fac Upp Upp Zhi Pro Fac Arm Lab Res Tes Gar Res Qua Sec Gar Acc Com Total 61491 | . 677 542 1208 478 2796 519 2141 2380 504 329 3696 961 1161 1148 4048 836 3844 1451 1681 669 588 406 2607 802 872 449 1952 3900 3097 687 1203 3377 829 490 1637 2922 2648 571 1385 Wait 13273 | . 84 35 150 53 55 41 544 993 8 56 1376 16 59 22 1132 18 751 139 146 5 37 24 860 20 43 16 972 1310 693 211 265 1126 11 166 201 471 927 79 158 Move 41929 | . 537 488 880 409 2479 463 1415 1186 482 263 2072 832 1022 1044 2614 806 2852 1118 1233 549 527 241 1562 759 805 397 907 2119 2035 398 875 1781 641 295 1252 1966 1429 364 832 Hop 1 | . . . . . . . . . . . . . 1 . . . . . . . . . . . . . . . . . . . . . . . . . . Pick Up 487 | . 16 2 28 . 86 1 36 18 2 2 22 8 20 3 39 1 12 6 16 . 1 36 9 3 1 4 6 24 17 9 5 13 . . 16 16 2 3 4 Fast Attach 520 | . 1 . 11 1 25 2 18 14 2 2 27 5 . . 56 . 16 4 27 3 4 10 15 . . 5 5 22 17 10 10 37 4 2 16 58 47 21 23 Attach 262 | . 2 2 9 . 8 . 10 6 2 . 11 4 . 4 10 . 10 9 11 . . 6 24 . . . 7 24 7 . 5 19 1 1 13 34 1 4 18 Detach 175 | . . . 2 . 6 . 8 1 1 . 5 1 . 1 14 . 6 3 6 . 1 2 9 . . 1 6 13 9 3 . 15 2 . 7 21 2 11 19 Swap 190 | . 3 1 8 . 10 . 12 9 2 1 16 11 4 2 7 . 14 7 12 7 4 2 5 . . 4 1 8 16 6 1 8 1 4 1 . . 3 . Drop 850 | . 6 1 30 . 104 2 40 15 3 5 16 4 16 3 85 . 40 9 20 2 3 7 29 2 1 4 4 40 43 15 10 52 7 3 42 69 59 23 36 Fire 2707 | . 28 13 90 13 23 10 57 135 2 . 141 52 35 3 85 7 133 133 190 66 10 24 18 15 21 . 28 308 160 22 18 283 86 13 55 57 88 22 263 Melee 647 | . . . . . . . . . . . 10 . . 66 2 4 10 2 5 . . . 43 . 1 5 10 21 10 4 14 26 14 6 34 230 57 41 32 Ram 4 | . . . . . . . . . . . . . . . . . . . 3 . 1 . . . . . . . . . . . . . . . . . . Kick 7 | . . . . 2 . . 1 . . . . . . . 4 . . . . . . . . . . . . . . . . . . . . . . . . Crush 3 | . . . . . . . . 3 . . . . . . . . . . . . . . . . . . . . . . . . . . . . . . . Escape Stasis 130 | . . . . . . . . . . . . . . . . . . 5 . 32 . 53 . . . . . . . . . 15 10 . . . 15 . . Rewire 196 | . . . . . . . . . . . . 28 4 . . . . 16 12 . . . . 3 . 13 6 . 90 . . . 3 . . . 21 . . Trap 110 | . . . . . . . . . . . . . . . . . . . . 5 . 1 33 . . . . 11 . 9 . 2 49 . . . . . . Miscellaneous . | . . . . . . . . . . . . . . . . . . . . . . . . . . . . . . . . . . . . . . . . Route ------- -11/Junkyard -10/Materials (discovered 4 exits: *Mat x2 / *Min x2) -10/Mines (discovered 2 exits: *Mat x2) -9/Materials (discovered 4 exits: *Mat x3 / *Min) -9/Mines -9/Exiles (discovered 2 exits: [*Min x2]) -8/Mines (discovered 2 exits: *Mat x2) -8/Materials (discovered 4 exits: *Fac x3 / *Sto) -8/Storage (discovered 2 exits: *Fac / *Rec) -7/Factory -7/Waste -7/Factory (discovered 6 exits: *Fac / *Low x2 / Gar / Gar / Gar) -7/Lower Caves -7/Lower Caves (discovered 2 exits: *Fac / *Zio) -7/Zion (discovered 2 exits: *Dee / [*Pro]) -7/Deep Caves -6/Proximity Caves -6/Factory (discovered 7 exits: *Fac x4 / *Low x2 / Gar) -6/Garrison (discovered 4 exits: *Fac x4) -6/Factory (discovered 7 exits: *Fac x4 / Low x2 / Gar) -6/Garrison (discovered 3 exits: *Fac x3) -6/Factory (discovered 2 exits: DSF / DSF) -6/DSF -5/Factory (discovered 3 exits: *Fac / *Upp x2) -5/Upper Caves -5/Upper Caves (discovered 2 exits: *Fac / *Zhi) -5/Zhirov -4/Proximity Caves -4/Factory (discovered 9 exits: *Res x4 / *Upp x2 / Ext x2 / *Arm) -4/Armory (discovered 3 exits: *Res x2 / *Lab) -4/Lab -3/Research (discovered 5 exits: Res x3 / *Tes x2) -3/Testing (discovered 2 exits: *Res / Gar) -3/Garrison (discovered 3 exits: *Res x3) -2/Research -2/Quarantine (discovered 2 exits: *Acc / *Sec) -2/Section 7 (discovered 2 exits: *Acc / Gar) -2/Garrison (discovered 3 exits: *Acc x3) -1/Access -1/Command (discovered 2 exits: [Sur x2]) 0b10 Command History --------- Turn | Location | Event 1 | -11/Junkyard | Discovered new exit (range 0) 1 | -11/Junkyard | Entered Materials 3 | -10/Materials | Identified exit to Mines 267 | -10/Materials | Discovered new exit (range 18) 307 | -10/Materials | Build established: Mutant 814 | -10/Materials | Discovered new exit (range 15) 1250 | -10/Materials | Entered Mines 1259 | -10/Mines | Met a Derelict bent on vengeance 1595 | -10/Mines | Learned location of Storage (-8) 1618 | -10/Mines | Discovered new exit (range 4) 1753 | -10/Mines | Build established: Scavenger-Mutant 2116 | -10/Mines | Core integrity fell below 50% 2389 | -10/Mines | Discovered new exit (range 12) 2597 | -10/Mines | Entered Materials 2597 | -9/Materials | Evolved 2 slots: Utility x2 2768 | -9/Materials | Identified exit to Materials 3117 | -9/Materials | Build established: Mutant 4015 | -9/Materials | Repaired VSS Leg 4154 | -9/Materials | Repaired Hrd. Light Armor Plating 4522 | -9/Materials | Identified exit to Mines 5403 | -9/Materials | Entered Mines 5404 | -9/Mines | Assembled infested the area 5576 | -9/Mines | Learned location of 1 exit from Proximity Caves 5643 | -9/Mines | Escorted by a lone wolf Derelict 5696 | -9/Mines | Assisted by bots powering up and referring to "LRC-V3" 5698 | -9/Mines | Learned Materials terminal intel 5923 | -9/Mines | Learned Materials garrison access intel 5936 | -9/Mines | Discovered new exit (range 5) 5955 | -9/Mines | Entered Exiles 5955 | -9/Exiles | Accompanied by 4 allies 6025 | -9/Exiles | Met 8R-AWN 6071 | -9/Exiles | Met EX-HEX 6149 | -9/Exiles | Met EX-BIN 6230 | -9/Exiles | Opened EX-Vault 6307 | -9/Exiles | Warned to stay clear of 0b10 Research branches 6331 | -9/Exiles | Met EX-DEC 6404 | -9/Exiles | Discovered new exit (range 10) 6467 | -9/Exiles | Visited The Gauntlet 7220 | -9/Exiles | Found AWS/Thermal 7232 | -9/Exiles | Found Superbattery 7261 | -9/Exiles | Found Modified TNC 7593 | -9/Exiles | Attacked by the Exiles 7704 | -9/Exiles | Destroyed 8R-AWN 7711 | -9/Exiles | Found Prototype Ballistic Gun 7713 | -9/Exiles | Found Prototype Ballistic Gun 7720 | -9/Exiles | Identified 8R-AWN's Boregun (x2) 7731 | -9/Exiles | Found Prototype Device 7731 | -9/Exiles | Identified AS-neutralizer No. 17b 7739 | -9/Exiles | Found Prototype Protection 7830 | -9/Exiles | Destroyed EX-HEX 7839 | -9/Exiles | Destroyed EX-BIN 7927 | -9/Exiles | Discovered new exit (range 14) 8322 | -9/Exiles | Destroyed EX-DEC 8383 | -9/Exiles | Found Prototype Device 8383 | -9/Exiles | Identified System Purifier 8659 | -9/Exiles | Found Prototype Processor 9232 | -9/Exiles | Build established: Hauler-Mutant 9247 | -9/Exiles | Learned location of Zion (-7) 9537 | -9/Exiles | Found Deploy-a-Sentry 9645 | -9/Exiles | Stole four prototypes: Superbattery, Modified TNC, AWS/Thermal, Deploy-a-Sentry 9645 | -9/Exiles | Entered Mines 9645 | -8/Mines | Accompanied by 1 ally 9794 | -8/Mines | Discovered exit to Materials (range 11) 10048 | -8/Mines | Discovered exit to Materials (range 4) 10411 | -8/Mines | Entered Materials 10411 | -8/Materials | Evolved 2 slots: Utility x1, Weapon x1 10412 | -8/Materials | Loaded intel: 12 terminal locations 10413 | -8/Materials | Loaded intel: 1 garrison access location 10558 | -8/Materials | Discovered new exit (range 3) 10593 | -8/Materials | Identified exit to Storage 10657 | -8/Materials | Discovered new exit (range 8) 10665 | -8/Materials | Identified exit to Factory 10916 | -8/Materials | Build established: Hauler-Gunner 10973 | -8/Materials | Garrison activated, responded to threat 11251 | -8/Materials | Repaired VSS Leg 11332 | -8/Materials | Repaired Enh. Autogun 11421 | -8/Materials | Repaired Exp. Heat Sink? 11749 | -8/Materials | Identified Exp. Targeting Computer 11749 | -8/Materials | Identified 8R-AWN's Armor/EX 13458 | -8/Materials | Repaired Broken Enh. Autogun 13493 | -8/Materials | Build established: Hauler-Skirmisher 13566 | -8/Materials | Repaired System Purifier 13676 | -8/Materials | Entered Storage 13702 | -8/Storage | Garrison activated, responded to threat 13763 | -8/Storage | Core integrity fell below 50% 13809 | -8/Storage | Lost 3 parts (1p1n1w) 13829 | -8/Storage | Destroyed 14 combat bots 14076 | -8/Storage | First assault squad dispatched 14273 | -8/Storage | Identified exit to Recycling 14531 | -8/Storage | Build established: Hauler-Mutant 14549 | -8/Storage | Core integrity fell below 20% 14645 | -8/Storage | Met 01-MTF 14869 | -8/Storage | Build established: Hauler-Gunner 15111 | -8/Storage | Found 01-MTF's Shockpuncher 15172 | -8/Storage | Assisted by bots powering up and referring to "LRC-V3" 15245 | -8/Storage | Repaired Adv. Treads 15313 | -8/Storage | Repaired Adv. Recalibrator 15351 | -8/Storage | Repaired Thermal Generator 15389 | -8/Storage | Repaired Adv. Treads 15429 | -8/Storage | Repaired Trap Scanner 15509 | -8/Storage | Repaired Gravity Neutralizer 15617 | -8/Storage | Repaired Centrium Light Armor Plating 15679 | -8/Storage | Repaired Adv. Transmission Jammer 15741 | -8/Storage | Repaired Imp. Armor Integrity Analyzer 15767 | -8/Storage | Repaired Hcp. Storage Unit 15866 | -8/Storage | Repaired Adv. Myomer Leg 15892 | -8/Storage | Repaired Structural Scanner 15903 | -8/Storage | Destroyed 01-MTF 15916 | -8/Storage | Found Prototype Device 15916 | -8/Storage | Identified 01-MTF's Autohacker 16005 | -8/Storage | Remotely autohacked Sealed Heavy Doors 16280 | -8/Storage | Build established: Commander-Mutant 17252 | -8/Storage | Entered Factory 17252 | -7/Factory | Accompanied by 10 allies 17252 | -7/Factory | Evolved 2 slots: Power x1, Utility x1 17921 | -7/Factory | Build established: Commander-Skirmisher 18168 | -7/Factory | Sucked down chute 18168 | -7/Factory | Entered Waste 18168 | -7/Waste | The area was eerily silent 18300 | -7/Waste | 6 allies followed down the chute 18379 | -7/Waste | Build established: Hauler-Skirmisher 18484 | -7/Waste | Discovered new exit (range 15) 18695 | -7/Waste | Identified exit to Factory 18754 | -7/Waste | Entered Factory 18754 | -7/Factory | Accompanied by 6 allies 18798 | -7/Factory | Identified exit to DSF 18853 | -7/Factory | Identified exit to Garrison 19042 | -7/Factory | Identified exit to Lower Caves 19212 | -7/Factory | Identified exit to Garrison 19280 | -7/Factory | Discovered new exit (range 7) 19292 | -7/Factory | Identified exit to Factory 19532 | -7/Factory | Cargo convoy interrupted 19684 | -7/Factory | Repaired Adv. Hacking Suite 19797 | -7/Factory | Build established: Hauler-Mutant 20443 | -7/Factory | Repaired F-cell Engine 20523 | -7/Factory | Repaired F-cell Engine 20612 | -7/Factory | Repaired Enh. Flexi-carbon Leg 20722 | -7/Factory | Repaired Centrium Light Armor Plating 21413 | -7/Factory | Identified exit to Garrison 21685 | -7/Factory | Repaired Adv. Beam Rifle 21711 | -7/Factory | Repaired F-cell Engine 21739 | -7/Factory | Repaired F-cell Engine 21769 | -7/Factory | Repaired Enh. Flexi-carbon Leg 21806 | -7/Factory | Repaired Broken Enh. Flexi-carbon Leg 21818 | -7/Factory | Repaired Katana 21883 | -7/Factory | Repaired Adv. Beam Rifle 21909 | -7/Factory | Repaired F-cell Engine 21942 | -7/Factory | Repaired Broken Gravity Neutralizer 21962 | -7/Factory | Repaired Adv. Beam Rifle 21970 | -7/Factory | Repaired Structural Scanner 22246 | -7/Factory | Fabricated M-28 Smith? 22600 | -7/Factory | Core integrity fell below 50% 22775 | -7/Factory | Fabricated Adv. Hacking Suite (x1) 22804 | -7/Factory | Fabricated Exp. Targeting Computer (x1) 22892 | -7/Factory | Destroyed 7 combat bots 23125 | -7/Factory | Repaired F-cell Engine 23187 | -7/Factory | Repaired Adv. Transmission Jammer 23276 | -7/Factory | Repaired Enh. Flexi-carbon Leg 23366 | -7/Factory | Repaired Enh. Flexi-carbon Leg 23426 | -7/Factory | Repaired Adv. Beam Rifle 23500 | -7/Factory | Repaired Adv. Beam Rifle 23538 | -7/Factory | Repaired Imp. Weapon Shielding 23646 | -7/Factory | Repaired System Purifier 23693 | -7/Factory | Repaired Katana 24032 | -7/Factory | Entered Lower Caves 24042 | -7/Lower Caves | Learned Factory emergency access door positions 24503 | -7/Lower Caves | Attracted the attention of an 0b10 outpost 24560 | -7/Lower Caves | Destroyed 8 combat bots 25007 | -7/Lower Caves | Attracted the attention of an 0b10 checkpoint 25201 | -7/Lower Caves | Discovered new exit (range 6) 25224 | -7/Lower Caves | Attacked by a delusional Derelict stockpiling Unaware 25272 | -7/Lower Caves | Identified exit to Lower Caves 25286 | -7/Lower Caves | Entered another Lower Caves area 25286 | -7/Lower Caves | Accompanied by 4 allies 25333 | -7/Lower Caves | Spotted B-75 Beast 25347 | -7/Lower Caves | Allies destroyed B-75 Beast 25363 | -7/Lower Caves | DAS Turret deployed 25414 | -7/Lower Caves | Learned Factory emergency access door positions 25418 | -7/Lower Caves | Discovered exit to Factory (range 12) 25463 | -7/Lower Caves | Learned Factory trap positions 25509 | -7/Lower Caves | Attracted the attention of an 0b10 checkpoint 25523 | -7/Lower Caves | Core integrity fell below 20% 25866 | -7/Lower Caves | Build established: Hauler-Tank 26233 | -7/Lower Caves | Spotted 71-A4C(f) 26234 | -7/Lower Caves | Encountered a Master Thief 26235 | -7/Lower Caves | Spotted PS-L0N(f) 26236 | -7/Lower Caves | Encountered a Master Thief 26236 | -7/Lower Caves | Spotted QE-G93(f) 26236 | -7/Lower Caves | Spotted RT-166(f) 26237 | -7/Lower Caves | Encountered a Master Thief 26237 | -7/Lower Caves | Encountered a Master Thief 26238 | -7/Lower Caves | Spotted 5M-KH8(f) 26238 | -7/Lower Caves | 8R-AWN's Boregun stolen by Master Thief 26239 | -7/Lower Caves | Encountered a Master Thief 26240 | -7/Lower Caves | Destroyed 71-A4C(f) 26257 | -7/Lower Caves | Destroyed PS-L0N(f) 26260 | -7/Lower Caves | Destroyed RT-166(f) 26261 | -7/Lower Caves | Centrium Light Armor Plating stolen by Master Thief 26276 | -7/Lower Caves | Allies destroyed QE-G93(f) 26317 | -7/Lower Caves | Discovered new exit (range 11) 26328 | -7/Lower Caves | Identified exit to Zion 26794 | -7/Lower Caves | Entered Zion 26794 | -7/Zion | Accompanied by 3 allies 26943 | -7/Zion | Discovered new exit (range 10) 27129 | -7/Zion | Learned Factory trap positions 27138 | -7/Zion | Learned Factory terminal intel 27303 | -7/Zion | Learned Factory emergency access door positions 27338 | -7/Zion | Given the Hacking Drone Bay 27942 | -7/Zion | Build established: Hauler-Mutant 28119 | -7/Zion | Discovered new exit (range 6) 28123 | -7/Zion | Saw the warning signs outside the Deep Caves entrance 28125 | -7/Zion | Identified exit to Deep Caves 28350 | -7/Zion | Entered Deep Caves 28350 | -7/Deep Caves | Accompanied by 3 allies 28685 | -7/Deep Caves | Attacked by Z-Imprinter 28709 | -7/Deep Caves | Destroyed Z-Imprinter 28773 | -7/Deep Caves | Found Prototype Protection 28773 | -7/Deep Caves | Identified Zio. Weapon Casing 28935 | -7/Deep Caves | Z-Facility disabled 29012 | -7/Deep Caves | Lost 7 parts (1p1n2u3w) 29260 | -7/Deep Caves | Found Zio. Weapon Casing 29285 | -7/Deep Caves | Lost 7 parts (2p1n1u3w) 29692 | -7/Deep Caves | Build established: Scavenger-Gunner 29896 | -7/Deep Caves | Discovered new exit (range 6) 29901 | -7/Deep Caves | Identified exit to Proximity Caves 30008 | -7/Deep Caves | Spotted as-90853 30088 | -7/Deep Caves | Lost 9 parts (1p1n4u3w) 30122 | -7/Deep Caves | Found Zio. Weapon Casing 30430 | -7/Deep Caves | Lost 5 parts (2n2u1w) 30717 | -7/Deep Caves | Destroyed as-90853 30723 | -7/Deep Caves | Found GOLEM Unit 30781 | -7/Deep Caves | Build established: Scavenger-Tank 31435 | -7/Deep Caves | Build established: Golem 31873 | -7/Deep Caves | Build established: Hauler-Golem 31899 | -7/Deep Caves | Found Zio. Weapon Casing 32423 | -7/Deep Caves | Spotted as-12565 32491 | -7/Deep Caves | Destroyed as-12565 32496 | -7/Deep Caves | Found GOLEM Unit 32511 | -7/Deep Caves | Lost 3 parts (1p2w) 32802 | -7/Deep Caves | Triggered Deep Caves wall 32809 | -7/Deep Caves | Spotted AS-41926 32812 | -7/Deep Caves | Destroyed AS-41926 32820 | -7/Deep Caves | Spotted AS-04235 32841 | -7/Deep Caves | Destroyed AS-04235 32853 | -7/Deep Caves | Found AWS/Autocannon 32870 | -7/Deep Caves | Exposed GOLEM chamber 32874 | -7/Deep Caves | Found GOLEM Unit 32879 | -7/Deep Caves | Found GOLEM Unit 33123 | -7/Deep Caves | Entered Proximity Caves 34049 | -6/Proximity Caves | Learned Factory stockpile data 34221 | -6/Proximity Caves | Entered Factory 34221 | -6/Factory | Evolved 2 slots: Utility x2 34222 | -6/Factory | Loaded intel: 99 trap records 34222 | -6/Factory | Core integrity fell below 50% 34225 | -6/Factory | Loaded intel: 26 terminal locations 34382 | -6/Factory | Discovered new exit (range 9) 34392 | -6/Factory | Identified exit to Factory 34660 | -6/Factory | Discovered new exit (range 14) 34786 | -6/Factory | Identified exit to Garrison 34807 | -6/Factory | Discovered exit to Factory (range 16) 34835 | -6/Factory | Identified exit to Lower Caves 35923 | -6/Factory | Discovered exit to Lower Caves (range 11) 36108 | -6/Factory | Discovered exit to Factory (range 4) 36437 | -6/Factory | Spotted B-75 Beast 36746 | -6/Factory | Cargo convoy interrupted 36845 | -6/Factory | Found Prototype Launcher 36845 | -6/Factory | Identified Hellfire Missile Launcher 36851 | -6/Factory | Found Prototype Launcher 36851 | -6/Factory | Identified Tesla Bomb Launcher 37256 | -6/Factory | Repaired Adv. Sensor Array 38290 | -6/Factory | Repaired Broken Gravity Flail 38350 | -6/Factory | Repaired Broken Tesla Bomb Launcher 38372 | -6/Factory | Repaired Remote Datajack 38426 | -6/Factory | Repaired System Purifier 38641 | -6/Factory | Fabricated M-28 Smith (x1) 38684 | -6/Factory | Fabricated P-70 Sage (x2) 38726 | -6/Factory | Fabricated P-70 Sage (x2) 39432 | -6/Factory | Garrison activated, responded to threat 40523 | -6/Factory | Identified exit to Garrison 40525 | -6/Factory | Entered Garrison 40525 | -6/Garrison | Accompanied by 1 ally 40634 | -6/Garrison | Garrison Relay disabled 41064 | -6/Garrison | Triggered checkpoint 41140 | -6/Garrison | Triggered checkpoint 41147 | -6/Garrison | Discovered new exit (range 13) 41191 | -6/Garrison | Discovered new exit (range 5) 41196 | -6/Garrison | Identified exit to Factory 41373 | -6/Garrison | Build established: Hauler-Mutant 41394 | -6/Garrison | Triggered checkpoint 41420 | -6/Garrison | Garrison Relay disabled 41546 | -6/Garrison | Triggered checkpoint 41773 | -6/Garrison | Lost 3 parts (1u2w) 41776 | -6/Garrison | Garrison Relay disabled 41780 | -6/Garrison | Destroyed 7 combat bots 41828 | -6/Garrison | Triggered checkpoint 41838 | -6/Garrison | Triggered checkpoint 41858 | -6/Garrison | Triggered checkpoint 42081 | -6/Garrison | Discovered exit to Factory (range 14) 42214 | -6/Garrison | Triggered checkpoint 42273 | -6/Garrison | Discovered exit to Factory (range 9) 42394 | -6/Garrison | Triggered checkpoint 42448 | -6/Garrison | Garrison Relay disabled 42523 | -6/Garrison | Learned Factory security intel 42628 | -6/Garrison | Build established: Hauler-Gunner 43049 | -6/Garrison | Discovered exit to Factory (range 59) 43049 | -6/Garrison | Discovered exit to Factory (range 35) 43049 | -6/Garrison | Discovered exit to Factory (range 14) 43049 | -6/Garrison | Discovered exit to Factory (range 23) 43049 | -6/Garrison | Discovered exit to Factory (range 59) 43049 | -6/Garrison | Discovered exit to Factory (range 35) 43049 | -6/Garrison | Discovered exit to Factory (range 14) 43049 | -6/Garrison | Discovered exit to Factory (range 23) 43063 | -6/Garrison | Build established: Hauler-Mutant 43188 | -6/Garrison | Entered Factory 43189 | -6/Factory | Loaded intel: 91 trap records 43510 | -6/Factory | Found Prototype Launcher 43510 | -6/Factory | Identified Rocket Array 43876 | -6/Factory | Discovered exit to Factory (range 16) 43888 | -6/Factory | First assault squad dispatched 44210 | -6/Factory | Cargo convoy interrupted 44232 | -6/Factory | Core integrity fell below 20% 44292 | -6/Factory | Lost 8 parts (1p1n2u4w) 44311 | -6/Factory | Destroyed 10 combat bots 44557 | -6/Factory | Build established: Hauler-Gunner 45347 | -6/Factory | Repaired Adv. Transmission Jammer? 45584 | -6/Factory | Garrison activated, responded to threat 45723 | -6/Factory | Identified exit to Garrison 45899 | -6/Factory | Entered Garrison 45899 | -6/Garrison | Accompanied by 2 allies 45930 | -6/Garrison | Triggered checkpoint 45964 | -6/Garrison | Garrison Relay disabled 46015 | -6/Garrison | Spotted B-75 Beast 46024 | -6/Garrison | Triggered checkpoint 46031 | -6/Garrison | Destroyed B-75 Beast 46092 | -6/Garrison | Destroyed 11 combat bots 46137 | -6/Garrison | Discovered new exit (range 10) 46162 | -6/Garrison | Discovered new exit (range 62) 46162 | -6/Garrison | Discovered new exit (range 6) 46162 | -6/Garrison | Discovered new exit (range 67) 46264 | -6/Garrison | Triggered checkpoint 46376 | -6/Garrison | Triggered checkpoint 46412 | -6/Garrison | Garrison Relay disabled 46440 | -6/Garrison | Rescued a captive Derelict 46445 | -6/Garrison | Rescued a captive Derelict 46522 | -6/Garrison | Triggered checkpoint 46554 | -6/Garrison | Triggered checkpoint 46572 | -6/Garrison | Garrison Relay disabled 46703 | -6/Garrison | Destroyed 16 combat bots 46832 | -6/Garrison | Phase Generator disabled 46895 | -6/Garrison | Identified exit to Factory 46896 | -6/Garrison | Entered Factory 46903 | -6/Factory | Identified exit to DSF 47149 | -6/Factory | Identified exit to DSF 47246 | -6/Factory | First assault squad dispatched 47346 | -6/Factory | Build established: Hauler-Skirmisher 47669 | -6/Factory | Entered DSF 47702 | -6/DSF | Additional patrols routed to DSF 47740 | -6/DSF | Discovered exit to Factory (range 12) 47834 | -6/DSF | Sterilization system engaged 47854 | -6/DSF | Ambient heat levels rising (+10) 47869 | -6/DSF | Ambient heat levels rising (+10) 47870 | -6/DSF | Lost 5 parts (2p3w) 47884 | -6/DSF | Ambient heat levels rising (+10) 47899 | -6/DSF | Ambient heat levels rising (+10) 47914 | -6/DSF | Ambient heat levels rising (+10) 47929 | -6/DSF | Ambient heat levels rising (+10) 47944 | -6/DSF | Ambient heat levels rising (+10) 47959 | -6/DSF | Build established: Hauler-Mutant 47959 | -6/DSF | Ambient heat levels rising (+10) 47974 | -6/DSF | Ambient heat levels rising (+10) 47989 | -6/DSF | Ambient heat levels rising (+10) 48004 | -6/DSF | Ambient heat levels rising (+10) 48019 | -6/DSF | Ambient heat levels rising (+10) 48034 | -6/DSF | Ambient heat levels rising (+10) 48049 | -6/DSF | Ambient heat levels rising (+10) 48064 | -6/DSF | Ambient heat levels rising (+10) 48079 | -6/DSF | Ambient heat levels rising (+10) 48094 | -6/DSF | Ambient heat levels rising (+10) 48109 | -6/DSF | Ambient heat levels rising (+10) 48124 | -6/DSF | Ambient heat levels rising (+10) 48139 | -6/DSF | Ambient heat levels rising (+10) 48147 | -6/DSF | Entered Factory 48147 | -5/Factory | Evolved 2 slots: Utility x2 48205 | -5/Factory | Spotted B-75 Beast 48246 | -5/Factory | Destroyed B-75 Beast 48399 | -5/Factory | Fabricated Adv. Cloaking Device? 48447 | -5/Factory | First assault squad dispatched 48581 | -5/Factory | Fabricated Imp. Trap Scanner (x2) 48880 | -5/Factory | Build established: Hauler-Assassin 49586 | -5/Factory | Fabricated M-28 Smith (x1) 49671 | -5/Factory | Fabricated P-70 Sage (x2) 49747 | -5/Factory | Fabricated Exp. Utility Shielding (x1) 49869 | -5/Factory | Fabricated P-70 Sage (x2) 49912 | -5/Factory | Fabricated P-70 Sage (x2) 49955 | -5/Factory | Fabricated P-70 Sage (x2) 49985 | -5/Factory | Fabricated Rnf. Antimatter Reactor (x2) 50021 | -5/Factory | Fabricated M-28 Smith (x1) 50067 | -5/Factory | Fabricated P-70 Sage (x2) 50105 | -5/Factory | Fabricated Exp. Targeting Computer (x1) 50128 | -5/Factory | Fabricated Thermic Laser (x2) 50192 | -5/Factory | Fabricated Adv. Trap Extractor (x2) 50389 | -5/Factory | Identified exit to Upper Caves 50735 | -5/Factory | Build established: Hauler-Mutant 50789 | -5/Factory | Discovered new exit (range 15) 50869 | -5/Factory | Sage 6j assimilated hostile G-50 Soldier 50942 | -5/Factory | Fabricated Prc. Energy Filter (x1) 50997 | -5/Factory | Identified exit to Factory 51143 | -5/Factory | Entered Upper Caves 51143 | -5/Upper Caves | Accompanied by 7 allies 51172 | -5/Upper Caves | Attracted the attention of an 0b10 checkpoint 51182 | -5/Upper Caves | Met a Warlord Commander 51183 | -5/Upper Caves | Learned location of Warlord (-4) 51186 | -5/Upper Caves | Found Encrypted Comm Array 51491 | -5/Upper Caves | Sage 6h assimilated hostile G-50 Soldier 51961 | -5/Upper Caves | Spotted B-75 Beast 51970 | -5/Upper Caves | Allies destroyed B-75 Beast 52139 | -5/Upper Caves | Discovered new exit (range 6) 52143 | -5/Upper Caves | Identified exit to Upper Caves 52193 | -5/Upper Caves | Entered another Upper Caves area 52193 | -5/Upper Caves | Accompanied by 10 allies 52260 | -5/Upper Caves | Spotted B-75 Beast 52271 | -5/Upper Caves | Learned Factory garrison access intel 52387 | -5/Upper Caves | Discovered exit to Factory (range 6) 52705 | -5/Upper Caves | Attracted the attention of an 0b10 base 52705 | -5/Upper Caves | Sage 6j assimilated hostile G-50 Soldier 52775 | -5/Upper Caves | Encountered a Warlord checkpoint 53065 | -5/Upper Caves | Attracted the attention of an 0b10 checkpoint 53256 | -5/Upper Caves | Discovered new exit (range 9) 53275 | -5/Upper Caves | Learned Factory trap positions 53275 | -5/Upper Caves | Identified exit to Zhirov 53337 | -5/Upper Caves | Entered Zhirov 53337 | -5/Zhirov | Accompanied by 3 allies 53337 | -5/Zhirov | Discovered new exit (range 3) 53361 | -5/Zhirov | Met Zhirov 53386 | -5/Zhirov | Learned location of Quarantine (-2) 53386 | -5/Zhirov | Learned location of Testing (-3) 53386 | -5/Zhirov | Learned location of Command (-1) 53412 | -5/Zhirov | Zhirov requested help retrieving the SGEMP Prototype 53431 | -5/Zhirov | Found Alien Artifact 53455 | -5/Zhirov | Found Alien Artifact 53643 | -5/Zhirov | Identified exit to Proximity Caves 53907 | -5/Zhirov | Entered Proximity Caves 53907 | -4/Proximity Caves | Accompanied by 3 allies 53950 | -4/Proximity Caves | Attracted the attention of an 0b10 checkpoint 54122 | -4/Proximity Caves | Spotter reported a threat 54160 | -4/Proximity Caves | Attracted the attention of an 0b10 outpost 54221 | -4/Proximity Caves | System corruption reached 10% 54251 | -4/Proximity Caves | Lost 8 parts (6u2w) 54255 | -4/Proximity Caves | Spotter reported a threat 54447 | -4/Proximity Caves | Spotter reported a threat 54560 | -4/Proximity Caves | Learned Research emergency access door positions 54613 | -4/Proximity Caves | Build established: Trapper-Mutant 54760 | -4/Proximity Caves | Learned location of Armory (-4) 55682 | -4/Proximity Caves | Build established: Trapper-Golem 55903 | -4/Proximity Caves | Spotted B-86 Titan 55945 | -4/Proximity Caves | Destroyed B-86 Titan 56205 | -4/Proximity Caves | Discovered exit to Factory (range 10) 56279 | -4/Proximity Caves | Entered Factory 56279 | -4/Factory | Accompanied by 2 allies 56279 | -4/Factory | Evolved 2 slots: Utility x2 56280 | -4/Factory | Identified exit to Extension 56281 | -4/Factory | Loaded intel: 73 trap records 56282 | -4/Factory | Loaded intel: 3 garrison access locations 56407 | -4/Factory | Spotted B-86 Titan 56421 | -4/Factory | Destroyed B-86 Titan 56424 | -4/Factory | Garrison activated, responded to threat 56529 | -4/Factory | Search patrols dispatched 56652 | -4/Factory | Discovered new exit (range 6) 56752 | -4/Factory | Destroyed 7 combat bots 56752 | -4/Factory | Lost 6 parts (1p1u4w) 56779 | -4/Factory | First assault squad dispatched 56898 | -4/Factory | Repaired Broken Hdn. Centrium Wheel 57180 | -4/Factory | Lost 3 parts (2u1w) 57268 | -4/Factory | Lost 8 parts (1p2n2u3w) 57454 | -4/Factory | Identified exit to Research 57532 | -4/Factory | Identified Transdimensional Reconstructor 57532 | -4/Factory | Identified Integrated Dissipator 57634 | -4/Factory | Destroyed 7 combat bots 57662 | -4/Factory | Installed Integrated Dissipator, increased core heat dissipation (+20) 57681 | -4/Factory | Core integrity fell below 50% 57783 | -4/Factory | Discovered exit to Research (range 9) 57974 | -4/Factory | Lost 7 parts (1p3u3w) 58000 | -4/Factory | Destroyed 7 combat bots 58060 | -4/Factory | Build established: Hauler-Golem 58161 | -4/Factory | Core integrity fell below 20% 58209 | -4/Factory | Specialist reinforcements revealed to be Infiltrators 58317 | -4/Factory | Repaired Broken Imp. System Restoration Module 58386 | -4/Factory | Lost 4 parts (1n2u1w) 59204 | -4/Factory | Discovered new exit (range 14) 59233 | -4/Factory | Identified exit to Upper Caves 59233 | -4/Factory | Identified exit to Armory 59370 | -4/Factory | Fabricated Imp. Armor Integrity Analyzer (x1) 59447 | -4/Factory | Fabricated Exp. Utility Shielding (x1) 60373 | -4/Factory | Entered Armory 60373 | -4/Armory | Accompanied by 1 ally 60541 | -4/Armory | Found Unknown Device 60541 | -4/Armory | Identified Adv. Force Booster 60587 | -4/Armory | Remotely autohacked Sealed Heavy Doors 60620 | -4/Armory | Remotely autohacked Sealed Heavy Doors 61375 | -4/Armory | Lost 5 parts (1p1u3w) 61377 | -4/Armory | Destroyed 10 combat bots 61437 | -4/Armory | Fabricated H-77 Assassin (x2) 61916 | -4/Armory | First assault squad dispatched 62018 | -4/Armory | Repaired Prc. Energy Filter 62038 | -4/Armory | Repaired Adv. Transmission Jammer 62063 | -4/Armory | Repaired Adv. Cloaking Device 62091 | -4/Armory | Repaired Broken Point Defense Array 62182 | -4/Armory | Repaired Imp. System Restoration Module 62251 | -4/Armory | Repaired Adv. Power Amplifier 62337 | -4/Armory | Found Prototype Processor 62337 | -4/Armory | Identified Exp. Signal Interpreter 62342 | -4/Armory | Found Exp. Signal Interpreter 62379 | -4/Armory | Spotted B-86 Titan 62500 | -4/Armory | Remotely autohacked Sealed Heavy Doors 62556 | -4/Armory | Allies destroyed B-86 Titan 62795 | -4/Armory | Assisted by bots powering up and referring to "LRC-V3" 62840 | -4/Armory | Discovered new exit (range 16) 62991 | -4/Armory | Identified exit to Lab 63141 | -4/Armory | Entered Lab 63141 | -4/Lab | Accompanied by 10 allies 63141 | -4/Lab | Discovered exit to Research (range 9) 63159 | -4/Lab | Unable to decrypt terminal 63159 | -4/Lab | Opened the door to a hidden lab 63160 | -4/Lab | Gained access to the hidden lab's interior 63160 | -4/Lab | Detected by scanners 63166 | -4/Lab | Unable to decrypt terminal 63233 | -4/Lab | Destroyed 9 combat bots 63269 | -4/Lab | Unable to decrypt terminal 63288 | -4/Lab | Found Alien Artifact 63295 | -4/Lab | Found Transdimensional Reconstructor 63300 | -4/Lab | Found Alien Artifact 63306 | -4/Lab | Found Alien Artifact 63314 | -4/Lab | Found Quantum Router 63316 | -4/Lab | Found Prototype Device 63316 | -4/Lab | Identified AEGIS Remote Shield 63322 | -4/Lab | Found Prototype Energy Cannon 63322 | -4/Lab | Identified Potential Cannon 63325 | -4/Lab | Found Prototype Energy Cannon 63325 | -4/Lab | Identified Warp Cannon 63460 | -4/Lab | Found Prototype Special Weapon 63460 | -4/Lab | Identified Gui. Remote Datajack 63481 | -4/Lab | Unable to decrypt terminal 63553 | -4/Lab | Unable to decrypt terminal 63584 | -4/Lab | Build established: Trapper-Golem 63630 | -4/Lab | Unable to decrypt terminal 63631 | -4/Lab | Found Alien Artifact 63631 | -4/Lab | Identified LC Capacitor 63641 | -4/Lab | Entered Research 63641 | -3/Research | Evolved 2 slots: Utility x2 63709 | -3/Research | Repaired Adv. Trap Extractor 63799 | -3/Research | Repaired Prc. Energy Filter 63864 | -3/Research | Discovered new exit (range 15) 63869 | -3/Research | Identified exit to Testing 64031 | -3/Research | Identified exit to Research 64073 | -3/Research | Found Antimissile System 64079 | -3/Research | Spotted B-86 Titan 64111 | -3/Research | Found Prototype Device 64111 | -3/Research | Identified Exp. Thermal Shield 64146 | -3/Research | Intercept squad dispatched 64163 | -3/Research | Identified Integrated Reactor 64163 | -3/Research | Identified Core Expander 64163 | -3/Research | Identified Core Reset Matrix 64163 | -3/Research | Spotted Tracker 64167 | -3/Research | Destroyed Tracker 64175 | -3/Research | Installed Integrated Reactor, increased core energy generation (+10) 64183 | -3/Research | Spotted Combat Programmer 64195 | -3/Research | Destroyed Combat Programmer 64233 | -3/Research | Repaired Lrn. Sensor Array 64255 | -3/Research | Repaired Adv. Transmission Jammer 64445 | -3/Research | Entered Testing 64627 | -3/Testing | Discovered exit to Research (range 11) 64709 | -3/Testing | Intercept squad dispatched 64714 | -3/Testing | Spotted Tracker 64720 | -3/Testing | Spotted Combat Programmer 64721 | -3/Testing | Destroyed Tracker 64739 | -3/Testing | Destroyed Combat Programmer 64996 | -3/Testing | Found Prototype Processor 64996 | -3/Testing | Identified Exp. Target Analyzer 65161 | -3/Testing | Spotted PP-HNMF4CQIN5 65197 | -3/Testing | Destroyed PP-HNMF4CQIN5 65258 | -3/Testing | Intercept squad dispatched 65261 | -3/Testing | Spotted Superbehemoth 65266 | -3/Testing | Spotted Tracker 65272 | -3/Testing | Destroyed Tracker 65278 | -3/Testing | Found Prototype Device 65278 | -3/Testing | Identified Exp. Phase Shifter 65280 | -3/Testing | Spotted Combat Programmer 65293 | -3/Testing | Destroyed Combat Programmer 65297 | -3/Testing | Found Prototype Energy Gun 65297 | -3/Testing | Identified Immobilizer 65563 | -3/Testing | Found Prototype Energy Gun 65563 | -3/Testing | Identified Warp Gun 65639 | -3/Testing | Found Prototype Ballistic Gun 65639 | -3/Testing | Identified Hyp. Multirail 65860 | -3/Testing | Intercept squad dispatched 65871 | -3/Testing | Spotted Tracker 65872 | -3/Testing | Spotted Tracker 65873 | -3/Testing | Spotted Tracker 65881 | -3/Testing | Destroyed Tracker 65887 | -3/Testing | Destroyed Tracker 65893 | -3/Testing | Destroyed Tracker 65895 | -3/Testing | Spotted Combat Programmer 65896 | -3/Testing | Spotted Combat Programmer 65898 | -3/Testing | Destroyed Combat Programmer 65900 | -3/Testing | Spotted Combat Programmer 65930 | -3/Testing | System corruption reached 10% 65949 | -3/Testing | Destroyed Combat Programmer 65955 | -3/Testing | Lost 7 parts (1p2n2u2w) 66115 | -3/Testing | Destroyed Combat Programmer 66311 | -3/Testing | Repaired Broken Power Sword 66327 | -3/Testing | Repaired Imp. System Restoration Module 66426 | -3/Testing | Build established: Hauler-Golem 66627 | -3/Testing | Found Prototype Slashing Weapon 66627 | -3/Testing | Identified Nanosword 66631 | -3/Testing | Found Nanosword 66772 | -3/Testing | Lost 3 parts (3u) 66864 | -3/Testing | Found Prototype Energy Cannon 66864 | -3/Testing | Identified Imp. Potential Cannon 67412 | -3/Testing | Found Prototype Slashing Weapon 67412 | -3/Testing | Identified Vibroblade 67436 | -3/Testing | Found Prototype Processor 67436 | -3/Testing | Identified Exp. Melee Analysis Suite 67634 | -3/Testing | Spotted Striker 67674 | -3/Testing | Spotted Striker 67705 | -3/Testing | Destroyed Striker 67807 | -3/Testing | Destroyed Striker 68287 | -3/Testing | Intercept squad dispatched 68292 | -3/Testing | Spotted Tracker 68292 | -3/Testing | Spotted Tracker 68292 | -3/Testing | Spotted Tracker 68293 | -3/Testing | Spotted Tracker 68295 | -3/Testing | Core integrity fell below 50% 68310 | -3/Testing | Spotted Combat Programmer 68311 | -3/Testing | Spotted Combat Programmer 68311 | -3/Testing | Spotted Combat Programmer 68312 | -3/Testing | Spotted Combat Programmer 68331 | -3/Testing | Destroyed Tracker 68356 | -3/Testing | Destroyed Combat Programmer 68369 | -3/Testing | Destroyed Combat Programmer 68380 | -3/Testing | Lost 12 parts (1n7u4w) 68382 | -3/Testing | Destroyed Combat Programmer 68385 | -3/Testing | Destroyed Tracker 68391 | -3/Testing | Destroyed Combat Programmer 68396 | -3/Testing | Destroyed Tracker 68400 | -3/Testing | Destroyed Tracker 68417 | -3/Testing | Found Exp. Targeting Computer 68421 | -3/Testing | Destroyed 7 combat bots 68762 | -3/Testing | Found Prototype Energy Cannon 68762 | -3/Testing | Identified Cld. Nova Cannon 68937 | -3/Testing | Identified exit to Garrison 69147 | -3/Testing | Entered Garrison 69186 | -3/Garrison | Discovered exit to Research (range 91) 69186 | -3/Garrison | Discovered exit to Research (range 56) 69186 | -3/Garrison | Discovered exit to Research (range 63) 69204 | -3/Garrison | Triggered checkpoint 69220 | -3/Garrison | Garrison Relay disabled 69548 | -3/Garrison | Triggered checkpoint 69628 | -3/Garrison | Destroyed 13 combat bots 69842 | -3/Garrison | Triggered checkpoint 69856 | -3/Garrison | Garrison Relay disabled 69961 | -3/Garrison | Phase Generator disabled 70040 | -3/Garrison | Triggered checkpoint 70088 | -3/Garrison | Garrison Relay disabled 70237 | -3/Garrison | Triggered checkpoint 70376 | -3/Garrison | Triggered checkpoint 70494 | -3/Garrison | Garrison Relay disabled 70572 | -3/Garrison | Triggered checkpoint 70586 | -3/Garrison | Garrison Relay disabled 70599 | -3/Garrison | Garrison Relay disabled 70636 | -3/Garrison | Garrison Relay disabled 70638 | -3/Garrison | Garrison Relay disabled 70840 | -3/Garrison | Entered Research 70840 | -2/Research | Evolved 4 slots: Utility x3, Weapon x1 71090 | -2/Research | First assault squad dispatched 71357 | -2/Research | Discovered new exit (range 10) 71415 | -2/Research | Identified exit to Quarantine 71605 | -2/Research | Entered Quarantine 71664 | -2/Quarantine | Found Alien Artifact 71686 | -2/Quarantine | Identified Phase Armor 71794 | -2/Quarantine | Found Alien Artifact 72032 | -2/Quarantine | Lost 3 parts (2u1w) 72037 | -2/Quarantine | Destroyed 7 combat bots 72118 | -2/Quarantine | Found Alien Slashing Weapon 72118 | -2/Quarantine | Identified Sigix Broadsword 72179 | -2/Quarantine | Found Alien Artifact 72193 | -2/Quarantine | Found Prototype Launcher 72313 | -2/Quarantine | Identified Subatomic Replicator 72313 | -2/Quarantine | Identified Phase Redirector 72514 | -2/Quarantine | Found Alien Impact Weapon 72514 | -2/Quarantine | Identified Core Stripper 72556 | -2/Quarantine | Found Alien Artifact 72559 | -2/Quarantine | Found Alien Artifact 72570 | -2/Quarantine | Found Transdimensional Reconstructor 72579 | -2/Quarantine | Found Transdimensional Reconstructor 72999 | -2/Quarantine | Identified Dimensional Node Initializer (x2) 73003 | -2/Quarantine | Identified Ragnarok Missile Launcher 73048 | -2/Quarantine | Discovered new exit (range 19) 73066 | -2/Quarantine | Intercept squad dispatched 73068 | -2/Quarantine | Spotted Tracker 73068 | -2/Quarantine | Spotted Tracker 73075 | -2/Quarantine | Destroyed Tracker 73078 | -2/Quarantine | Destroyed Tracker 73081 | -2/Quarantine | Spotted Combat Programmer 73082 | -2/Quarantine | Spotted Combat Programmer 73082 | -2/Quarantine | Destroyed Combat Programmer 73085 | -2/Quarantine | Destroyed Combat Programmer 73191 | -2/Quarantine | Spotted Alpha 7 73193 | -2/Quarantine | Destroyed Alpha 7 73207 | -2/Quarantine | Remotely autohacked Sealed Barrier 73215 | -2/Quarantine | Found Alien Launcher 73258 | -2/Quarantine | Found Alien Artifact 73269 | -2/Quarantine | Found Alien Artifact 73301 | -2/Quarantine | Spotted Fortress 73311 | -2/Quarantine | Destroyed Fortress 73319 | -2/Quarantine | Found Prototype Device 73319 | -2/Quarantine | Identified Thermal Barrier 73321 | -2/Quarantine | Found Prototype Device 73321 | -2/Quarantine | Identified Exp. Force Field 73324 | -2/Quarantine | Found Unknown Protection 73324 | -2/Quarantine | Identified Hvy. Insulated Plating 73336 | -2/Quarantine | Found Prototype Device 73341 | -2/Quarantine | Identified Exp. EM Disruption Field 73390 | -2/Quarantine | Discovered new exit (range 6) 73393 | -2/Quarantine | Identified exit to Section 7 73462 | -2/Quarantine | Build established: Hacker-Golem 73558 | -2/Quarantine | Identified Terrabomb (x2) 73558 | -2/Quarantine | Identified Sigix Terminator 73683 | -2/Quarantine | Intercept squad dispatched 73694 | -2/Quarantine | Spotted Tracker 73694 | -2/Quarantine | Spotted Tracker 73695 | -2/Quarantine | Spotted Tracker 73696 | -2/Quarantine | Warped through subspace 73725 | -2/Quarantine | Entered Section 7 73737 | -2/Section 7 | Identified exit to Access 73910 | -2/Section 7 | Found Alien Artifact 73936 | -2/Section 7 | Spotted S7 Guard 73936 | -2/Section 7 | Destroyed S7 Guard 73941 | -2/Section 7 | Found Prototype Protection 73941 | -2/Section 7 | Identified Hvy. Regenerative Plating 74015 | -2/Section 7 | Search patrols dispatched 74061 | -2/Section 7 | Spotted B-90 Cyclops 74124 | -2/Section 7 | Crushed by falling debris 74124 | -2/Section 7 | System corruption reached 10% 74136 | -2/Section 7 | Identified Integrated Mediator 74136 | -2/Section 7 | Used Core Reset Matrix 74140 | -2/Section 7 | Sensed 19 artifacts in vicinity 74149 | -2/Section 7 | Intercept squad dispatched 74161 | -2/Section 7 | Spotted Tracker 74161 | -2/Section 7 | Destroyed Tracker 74162 | -2/Section 7 | Spotted Tracker 74164 | -2/Section 7 | Destroyed Tracker 74188 | -2/Section 7 | Spotted Combat Programmer 74190 | -2/Section 7 | Destroyed Combat Programmer 74190 | -2/Section 7 | Spotted Combat Programmer 74193 | -2/Section 7 | Destroyed Combat Programmer 74208 | -2/Section 7 | Found Prototype Device 74208 | -2/Section 7 | Identified Exp. Phase Shifter 74218 | -2/Section 7 | Found Prototype Processor 74218 | -2/Section 7 | Identified Exp. Targeting Computer 74229 | -2/Section 7 | Found Prototype Energy Gun 74229 | -2/Section 7 | Identified Immobilizer 74318 | -2/Section 7 | Destroyed 7 combat bots 74454 | -2/Section 7 | Found Spacefold Activator 74475 | -2/Section 7 | First assault squad dispatched 74560 | -2/Section 7 | Identified exit to Garrison 74606 | -2/Section 7 | Discovered exit to Access (range 15) 74607 | -2/Section 7 | Destroyed 18 combat bots 74627 | -2/Section 7 | Found Prototype Device 74627 | -2/Section 7 | Identified Exp. Shield Generator 74692 | -2/Section 7 | Core integrity fell below 50% 74707 | -2/Section 7 | Spotted Executioner 74718 | -2/Section 7 | Destroyed Executioner 74719 | -2/Section 7 | Spotted Executioner 74723 | -2/Section 7 | Destroyed Executioner 74872 | -2/Section 7 | Found Drained L-Cannon 74873 | -2/Section 7 | Installed L-Cannon capacitor 74998 | -2/Section 7 | Intercept squad dispatched 75009 | -2/Section 7 | Spotted Tracker 75009 | -2/Section 7 | Spotted Tracker 75010 | -2/Section 7 | Spotted Tracker 75020 | -2/Section 7 | Destroyed Tracker 75023 | -2/Section 7 | Destroyed Tracker 75027 | -2/Section 7 | Destroyed Tracker 75027 | -2/Section 7 | Spotted Combat Programmer 75028 | -2/Section 7 | Spotted Combat Programmer 75028 | -2/Section 7 | Spotted Combat Programmer 75032 | -2/Section 7 | Destroyed Combat Programmer 75035 | -2/Section 7 | Destroyed Combat Programmer 75039 | -2/Section 7 | Destroyed Combat Programmer 75049 | -2/Section 7 | Found Prototype Device 75049 | -2/Section 7 | Identified Exp. Focal Shield 75141 | -2/Section 7 | Spotted B-99 Colossus 75165 | -2/Section 7 | Destroyed B-99 Colossus 75183 | -2/Section 7 | Found Unknown Protection 75183 | -2/Section 7 | Identified Hvy. Reflective Plating 75196 | -2/Section 7 | Found Unknown Protection 75196 | -2/Section 7 | Identified Hvy. Insulated Plating 75206 | -2/Section 7 | Found Prototype Ballistic Gun 75206 | -2/Section 7 | Identified Multirail 75358 | -2/Section 7 | Remotely autohacked Sealed Heavy Doors 75365 | -2/Section 7 | Installed Integrated Mediator, increased core attachment efficiency. 75366 | -2/Section 7 | Installed Core Expander, added new Utility slot 75370 | -2/Section 7 | Found LRC Insulator 75370 | -2/Section 7 | Installed LRC Insulator, gained EM resistance (25) 75409 | -2/Section 7 | Found LRC Storage 75409 | -2/Section 7 | Installed LRC Storage, increased inventory capacity (+2) 75630 | -2/Section 7 | Intercept squad dispatched 75642 | -2/Section 7 | Spotted Tracker 75642 | -2/Section 7 | Destroyed Tracker 75643 | -2/Section 7 | Spotted Tracker 75644 | -2/Section 7 | Spotted Tracker 75646 | -2/Section 7 | Destroyed Tracker 75648 | -2/Section 7 | Spotted Tracker 75649 | -2/Section 7 | Destroyed Tracker 75654 | -2/Section 7 | Build established: Alien-Mutant 75654 | -2/Section 7 | Destroyed Tracker 75669 | -2/Section 7 | Spotted Combat Programmer 75671 | -2/Section 7 | Spotted Combat Programmer 75671 | -2/Section 7 | Destroyed Combat Programmer 75675 | -2/Section 7 | Spotted Combat Programmer 75677 | -2/Section 7 | Destroyed Combat Programmer 75680 | -2/Section 7 | Spotted Combat Programmer 75682 | -2/Section 7 | Destroyed Combat Programmer 75690 | -2/Section 7 | Destroyed Combat Programmer 75702 | -2/Section 7 | Found Exp. Phase Shifter 75711 | -2/Section 7 | Destroyed 8 combat bots 75893 | -2/Section 7 | Found Exp. Targeting Computer 76064 | -2/Section 7 | Spotted Striker 76110 | -2/Section 7 | Found Sigix Sheargun 76116 | -2/Section 7 | Found Sigix Sheargun 76119 | -2/Section 7 | Used Terrabomb 76119 | -2/Section 7 | Spotted Striker 76126 | -2/Section 7 | Core integrity fell below 20% 76131 | -2/Section 7 | Spotted Striker 76132 | -2/Section 7 | Spotted Striker 76156 | -2/Section 7 | Destroyed Striker 76166 | -2/Section 7 | Destroyed Striker 76250 | -2/Section 7 | Found Sigix Shearcannon 76283 | -2/Section 7 | Spotted Executioner 76284 | -2/Section 7 | Spotted Executioner 76291 | -2/Section 7 | Destroyed Executioner 76304 | -2/Section 7 | Destroyed Executioner 76306 | -2/Section 7 | Destroyed Striker 76355 | -2/Section 7 | Warped through subspace 76726 | -2/Section 7 | Build established: Alien-Golem 76908 | -2/Section 7 | Found Prototype Device 76908 | -2/Section 7 | Identified Exp. Force Field 77057 | -2/Section 7 | Spotted S7 Guard 77077 | -2/Section 7 | Destroyed B-90 Cyclops 77108 | -2/Section 7 | Destroyed S7 Guard 77140 | -2/Section 7 | Found Integrated Thermoelectric Network 77140 | -2/Section 7 | Installed Integrated Thermoelectric Network, gained heat-energy exchange potential 77173 | -2/Section 7 | Found Hvy. Regenerative Plating 77184 | -2/Section 7 | Intercept squad dispatched 77191 | -2/Section 7 | Spotted Tracker 77191 | -2/Section 7 | Spotted Tracker 77191 | -2/Section 7 | Spotted Tracker 77191 | -2/Section 7 | Spotted Tracker 77193 | -2/Section 7 | Destroyed Tracker 77199 | -2/Section 7 | Spotted Tracker 77202 | -2/Section 7 | Destroyed Tracker 77220 | -2/Section 7 | Spotted Combat Programmer 77221 | -2/Section 7 | Spotted Combat Programmer 77221 | -2/Section 7 | Spotted Combat Programmer 77223 | -2/Section 7 | Spotted Combat Programmer 77226 | -2/Section 7 | Destroyed Tracker 77231 | -2/Section 7 | Spotted Combat Programmer 77238 | -2/Section 7 | Destroyed Combat Programmer 77272 | -2/Section 7 | Lost 3 parts (3u) 77284 | -2/Section 7 | Destroyed Tracker 77289 | -2/Section 7 | Destroyed Combat Programmer 77300 | -2/Section 7 | Destroyed Combat Programmer 77320 | -2/Section 7 | Destroyed Combat Programmer 77374 | -2/Section 7 | Destroyed Tracker 77782 | -2/Section 7 | Garrison activated, responded to threat 77815 | -2/Section 7 | Entered Garrison 77821 | -2/Garrison | Destroyed 9 combat bots 77864 | -2/Garrison | Triggered checkpoint 77884 | -2/Garrison | Garrison Relay disabled 78010 | -2/Garrison | Spotted B-90 Cyclops 78027 | -2/Garrison | Triggered checkpoint 78043 | -2/Garrison | Triggered checkpoint 78046 | -2/Garrison | Destroyed B-90 Cyclops 78085 | -2/Garrison | Lost 4 parts (1p2u1w) 78100 | -2/Garrison | Destroyed 20 combat bots 78189 | -2/Garrison | Spotted B-90 Cyclops 78229 | -2/Garrison | Spotted B-90 Cyclops 78394 | -2/Garrison | Triggered checkpoint 78434 | -2/Garrison | Garrison Relay disabled 78578 | -2/Garrison | Triggered checkpoint 78738 | -2/Garrison | Destroyed 7 combat bots 78766 | -2/Garrison | Discovered exit to Access (range 11) 78768 | -2/Garrison | Triggered checkpoint 78786 | -2/Garrison | Garrison Relay disabled 78916 | -2/Garrison | Found Unknown Hackware 78916 | -2/Garrison | Identified Relay Coupler [Proto] 78931 | -2/Garrison | Found Unknown Device 78931 | -2/Garrison | Identified Adv. Force Booster 79117 | -2/Garrison | Discovered exit to Access (range 10) 79250 | -2/Garrison | Triggered checkpoint 79364 | -2/Garrison | Garrison Relay disabled 79629 | -2/Garrison | Phase Generator disabled 80053 | -2/Garrison | Found Antimissile System 80113 | -2/Garrison | Destroyed B-90 Cyclops 80131 | -2/Garrison | Destroyed B-90 Cyclops 80172 | -2/Garrison | Found Unknown Device 80172 | -2/Garrison | Identified Quantum Capacitor 80309 | -2/Garrison | Discovered exit to Access (range 7) 80338 | -2/Garrison | Garrison Relay disabled 80388 | -2/Garrison | Triggered checkpoint 81726 | -2/Garrison | Found Antimissile System 81730 | -2/Garrison | Found Antimissile System 81834 | -2/Garrison | Attempted to access garrison exit controls, blocked by remote lockdown 82034 | -2/Garrison | Entered Access 82034 | -1/Access | Accompanied by 3 allies 82171 | -1/Access | Joined by Warlord Geek squad 82178 | -1/Access | Identified exit to Command 82284 | -1/Access | First assault squad dispatched 82400 | -1/Access | Joined by Warlord Geek squad 82546 | -1/Access | Found Prototype Launcher 82546 | -1/Access | Identified Com. Tesla Bomb Launcher 82567 | -1/Access | Spotted B-99 Colossus 82567 | -1/Access | Spotted B-99 Colossus 82569 | -1/Access | Intercept squad dispatched 82596 | -1/Access | Spotted Tracker 82597 | -1/Access | Spotted Tracker 82636 | -1/Access | Destroyed Tracker 82637 | -1/Access | Spotted Combat Programmer 82639 | -1/Access | Destroyed Combat Programmer 82645 | -1/Access | Destroyed Tracker 82652 | -1/Access | Spotted Combat Programmer 82660 | -1/Access | Destroyed Combat Programmer 82671 | -1/Access | Destroyed B-99 Colossus 82678 | -1/Access | Destroyed B-99 Colossus 82699 | -1/Access | Destroyed 10 combat bots 82769 | -1/Access | Found Prototype Processor 82769 | -1/Access | Identified Exp. Target Analyzer 82779 | -1/Access | Destroyed 7 combat bots 82888 | -1/Access | Found Unknown Protection 82888 | -1/Access | Identified Hvy. Insulated Plating 82892 | -1/Access | Found Unknown Protection 82892 | -1/Access | Identified Hvy. Reflective Plating 82906 | -1/Access | Found Exp. Targeting Computer 82912 | -1/Access | Found Exp. Targeting Computer 82917 | -1/Access | Entered Command 83150 | -1/Command | High security lockdown imminent 83176 | -1/Command | Disengaged cave seal 83178 | -1/Command | Disengaged cave seal 83178 | -1/Command | Assembled emerged from the dark tunnel 83184 | -1/Command | Spotted B-99 Colossus 83192 | -1/Command | Allies destroyed B-99 Colossus 83230 | -1/Command | High security lockdown engaged 83237 | -1/Command | Spotted Executioner 83237 | -1/Command | Spotted Executioner 83237 | -1/Command | Spotted Executioner 83237 | -1/Command | Spotted Executioner 83237 | -1/Command | Spotted Striker 83237 | -1/Command | Spotted Striker 83237 | -1/Command | Spotted Alpha 7 83237 | -1/Command | Spotted Alpha 7 83240 | -1/Command | Spotted B-99 Colossus 83242 | -1/Command | Spotted B-99 Colossus 83242 | -1/Command | Allies destroyed Striker 83243 | -1/Command | Destroyed Alpha 7 83245 | -1/Command | Allies destroyed Executioner 83246 | -1/Command | Destroyed Executioner 83248 | -1/Command | Allies destroyed Executioner 83249 | -1/Command | Destroyed B-99 Colossus 83251 | -1/Command | Allies destroyed B-99 Colossus 83252 | -1/Command | Destroyed Striker 83255 | -1/Command | Allies destroyed Alpha 7 83255 | -1/Command | Destroyed Executioner 83390 | -1/Command | Destroyed Executioner 83407 | -1/Command | Spotted Investigator 83431 | -1/Command | Scanned by Researcher 83432 | -1/Command | Destroyed Investigator 83446 | -1/Command | Spotted Striker 83446 | -1/Command | Spotted Striker 83449 | -1/Command | Destroyed Striker 83452 | -1/Command | Spotted Executioner 83455 | -1/Command | Destroyed Executioner 83460 | -1/Command | Destroyed Striker 83492 | -1/Command | Destroyed 15 combat bots 83521 | -1/Command | Spotted Striker 83521 | -1/Command | Spotted Striker 83522 | -1/Command | Spotted Executioner 83522 | -1/Command | Spotted Striker 83527 | -1/Command | Destroyed Striker 83533 | -1/Command | Destroyed Striker 83554 | -1/Command | Destroyed Striker 83589 | -1/Command | System corruption reached 10% 83592 | -1/Command | Destroyed Executioner 83632 | -1/Command | Destroyed 25 combat bots 83708 | -1/Command | Spotted Investigator 83709 | -1/Command | Destroyed Investigator 83710 | -1/Command | Spotted Striker 83710 | -1/Command | Spotted Executioner 83712 | -1/Command | Spotted Executioner 83716 | -1/Command | Destroyed Striker 83730 | -1/Command | Destroyed Executioner 83730 | -1/Command | Destroyed Executioner 83801 | -1/Command | Spotted Striker 83809 | -1/Command | Destroyed Striker 83815 | -1/Command | Core integrity fell below 50% 83827 | -1/Command | Spotted Executioner 83835 | -1/Command | Destroyed Executioner 83858 | -1/Command | Destroyed 138 combat bots 83864 | -1/Command | Lost 6 parts (1p5u) 83926 | -1/Command | Destroyed 37 combat bots 83985 | -1/Command | Destroyed 14 combat bots 83995 | -1/Command | Spotted Striker 83997 | -1/Command | Destroyed Striker 83997 | -1/Command | Destroyed Executioner 84032 | -1/Command | Found Prototype Processor 84032 | -1/Command | Identified Exp. Core Analyzer 84037 | -1/Command | Found Prototype Device 84037 | -1/Command | Identified Adv. Kinecellerator 84048 | -1/Command | Spotted Striker 84049 | -1/Command | Spotted Executioner 84050 | -1/Command | Spotted Executioner 84062 | -1/Command | Destroyed Executioner 84065 | -1/Command | Destroyed Striker 84068 | -1/Command | Destroyed Executioner 84075 | -1/Command | Emitted hypermatrix ping 84080 | -1/Command | Assembled emerged from beneath the floor 84097 | -1/Command | Found Exp. Core Analyzer 84114 | -1/Command | Destroyed 26 combat bots 84327 | -1/Command | Spotted Striker 84327 | -1/Command | Spotted Investigator 84327 | -1/Command | Spotted Executioner 84328 | -1/Command | Allies destroyed Investigator 84336 | -1/Command | Destroyed Striker 84339 | -1/Command | Destroyed Executioner 84376 | -1/Command | Destroyed 12 combat bots 84409 | -1/Command | Spotted M Guard 84409 | -1/Command | Spotted M Guard 84409 | -1/Command | Spotted Combat Programmer 84411 | -1/Command | Destroyed M Guard 84413 | -1/Command | Destroyed M Guard 84418 | -1/Command | Destroyed Combat Programmer 84420 | -1/Command | Spotted Combat Programmer 84421 | -1/Command | Destroyed Combat Programmer 84421 | -1/Command | All MAIN.C guards destroyed 84452 | -1/Command | Found Prototype Energy Cannon 84452 | -1/Command | Identified Cld. Nova Cannon 84463 | -1/Command | Found Prototype Device 84463 | -1/Command | Identified Thermal Barrier 84469 | -1/Command | Found Prototype Device 84469 | -1/Command | Identified AEGIS Remote Shield 84481 | -1/Command | Found Hvy. Regenerative Plating 84486 | -1/Command | Found Hvy. Regenerative Plating 84677 | -1/Command | Met MAIN.C 84855 | -1/Command | Destroyed MAIN.C Shell 84858 | -1/Command | MAIN.C activated Command garrisons 84934 | -1/Command | Lost 9 parts (1p6u2w) 84953 | -1/Command | Core integrity fell below 20% 84953 | -1/Command | Destroyed MAIN.C 84956 | -1/Command | Discovered new exit (range 57) 84956 | -1/Command | Discovered new exit (range 71) 84956 | -1/Command | Extracted map data and part IDs from MAIN.C's data core 84982 | -1/Command | Destroyed 29 combat bots 85003 | -1/Command | Interfaced with 0b10 Conduit 85003 | *** | Assimilated 0b10! Last Messages --------------- 84957_ P-80 Master destroyed. 84957_ Quantum Shear penetrates S-43 Plague. 84957_ Quantum Shear penetrates Reinforced Barrier. 84957_ Quantum Shear penetrates S-43 Plague. 84957_ Quantum Shear penetrates Reinforced Barrier. 84959_ G-73 Enforcer system terminally corrupted. 84959_ C-57 Dissector destroyed. 84959_ System corrupted: Sigix Sheargun failed to cycle. 84960_ S-43 Plague destroyed. 84961_ Quantum Shear penetrates S-43 Plague. 84961_ S-43 Plague sundered. 84961_ S-43 Plague destroyed. 84966_ Acquired 4 matter. 84970_ Asb. Alloy Armor integration complete. 84971_ GOLEM Unit beginning Asb. Focal Cannon integration. 84974_ System corrupted: FCS attempts to trigger Sigix Shearcannon. 84974_ System corrupted: Sigix Shearcannon misfires. 84974_ Quantum Shear penetrates Reinforced Barrier. 85003_ Interfacing with system... [Achievement: MAIN.CPP] Map ----- +----------------------------------------------------+ | #########"""################################## | | # ##########"""################################## | | # ####### ################################# | | ####### ################################# | | ####### ################################# | | ####### ################################# | | ############################################# | | ############################################# | | ############################################# | | ############################################# | | ############################################# | | ############################################# | | ################################################## | | ################################################## | | ##############""""""" """" ############### | | # #####"" "" ############## | | # #####""""" "" ############### | | # #####""""""""""" / | | # #####" " """ / | | + #####"" """""" ; | | # #####"" """""" ############### | | # ##### " """""" ############### | | # ##### " "" ############### | | # ##### " " ""############### | | ##############""""""""" """""""############### | | ##############"" @"""""""""############### | | ############## """""""""""############### | | ############## " " " " ############### | | ############## " " " " ############### | | "" " " " """" " ############### | | """ " " """" ############### | | " " " " ############### | | " ###### """""""""" " ############### | | ###### " """ " """"""""############### | | ###### """ " " " ############### | | " ########################################## | | ########################################## | | " ########################################## | | ########################################## | | ########################################## | | ########################################## | | ########################################## | | ################################################## | | ################################################## | | ################################################## | | ################################################## | | ################################################## | | ################################################## | | ################################################## | | ################################################## | +----------------------------------------------------+ Best States ------------- Heat Dissipation 155 Energy Generation 315 Energy Capacity 2430 Matter Stores 490 Matter Capacity 350 Sight Range 23 Robot Scan Range 40 Terrain Scan Range 24 Terrain Scan Density 10 ECM Strength 2 Jamming Range 16 Cloak Strength 4 Power Amplification 30 Additional Mass Support 20 Corruption Block 12 Armor Coverage 16000 Resistance: KI 50 Resistance: TH 70 Resistance: EX 100 Resistance: EM 55 Resistance: I 35 Resistance: S 35 Resistance: P 35 Utility Shielding 90 Weapon Shielding 100 Point Defense Rating 480 Weapon Cycling 20 Phase Shifting 20 Evasion (%) 68 Targeting Accuracy 32 Target Analysis 12 Core Analysis 12 Armor Integrity Analysis 40 Recoil Reduction 4 Energy Filtering 50 Particle Charging 30 Salvage Targeting 3 Offensive Hacking 38 Defensive Hacking 25 Authchip Count 19 Trap Extractor Capacity 14 Item Schematics ----------------- Imp. Lightning Gun | -2/Section 7 | Archive Enh. Armored Medium Treads | -2/Section 7 | Archive Hdn. Centrium Wheel | -2/Section 7 | Archive Adv. Heavy Siege Treads | -2/Section 7 | Hacked Enh. Quantum Rifle | -2/Section 7 | Hacked Quantum Reactor | -2/Section 7 | Hacked Prc. Matter Filter | -2/Section 7 | Archive Particle Accelerator | -2/Section 7 | Archive Exp. Coolant Injector | -2/Section 7 | Archive Hvy. Neutron Cannon | -2/Section 7 | Archive Exp. Biometal Leg | -2/Section 7 | Archive Impact Mace | -2/Section 7 | Archive Lrn. Sensor Array | -2/Section 7 | Scanalyzed Ragnarok Missile Launcher | -2/Section 7 | Scanalyzed Adv. Trap Extractor | -2/Section 7 | Scanalyzed Antimissile System | -2/Section 7 | Scanalyzed Adv. Datajack | -2/Section 7 | Scanalyzed Exp. EM Disruption Field | -2/Section 7 | Scanalyzed Nanosword | -2/Section 7 | Scanalyzed Helical Railgun | -2/Section 7 | Archive Quantum Shading Machine | -2/Section 7 | Archive Coolant Network | -2/Section 7 | Archive Tri-rail Accelerator | -2/Section 7 | Archive Hvy. Dispersion Rifle | -2/Section 7 | Archive Com. Linear Accelerator | -2/Section 7 | Archive Vibroblade | -2/Section 7 | Archive Adv. Thermal Defense Suite | -2/Section 7 | Archive Com. Particle Reactor | -2/Section 7 | Archive Exp. Matter Compressor | -2/Section 7 | Archive Adv. Plasma Rifle | -2/Section 7 | Archive Diametric Drive | -2/Section 7 | Archive Neutron Missile Launcher | -2/Section 7 | Archive Exp. Hacking Suite | -2/Section 7 | Archive Robot Schematics ------------------ A-02 Transporter | -2/Section 7 | Hacked T-07 Excavator | -2/Section 7 | Archive G-73 Enforcer | -2/Section 7 | Archive B-74 Champion | -2/Section 7 | Archive A-27 Freighter | -2/Section 7 | Archive Fabricated ------------ M-28 Smith | x1 | -7/Factory | Authchip Adv. Hacking Suite | x1 | -7/Factory Exp. Targeting Computer | x1 | -7/Factory M-28 Smith | x1 | -6/Factory | Authchip P-70 Sage | x2 | -6/Factory | Authchip P-70 Sage | x2 | -6/Factory | Authchip Adv. Cloaking Device | x1 | -5/Factory | Preloaded, Authchip Imp. Trap Scanner | x2 | -5/Factory | Authchip M-28 Smith | x1 | -5/Factory | Authchip P-70 Sage | x2 | -5/Factory | Authchip Exp. Utility Shielding | x1 | -5/Factory | Authchip P-70 Sage | x2 | -5/Factory | Authchip P-70 Sage | x2 | -5/Factory | Authchip P-70 Sage | x2 | -5/Factory | Authchip Rnf. Antimatter Reactor | x2 | -5/Factory | Authchip M-28 Smith | x1 | -5/Factory | Authchip P-70 Sage | x2 | -5/Factory | Authchip Exp. Targeting Computer | x1 | -5/Factory | Authchip Thermic Laser | x2 | -5/Factory | Authchip Adv. Trap Extractor | x2 | -5/Factory Prc. Energy Filter | x1 | -5/Factory Imp. Armor Integrity Analyzer | x1 | -4/Factory | Authchip Exp. Utility Shielding | x1 | -4/Factory | Authchip H-77 Assassin | x2 | -4/Armory | Preloaded Alien Tech Used ----------------- Integrated Dissipator LC Capacitor Integrated Reactor Sigix Broadsword Core Stripper Phase Armor Transdimensional Reconstructor Core Reset Matrix Integrated Mediator Core Expander LRC Insulator LRC Storage Phase Redirector Terrabomb Sigix Sheargun Spacefold Activator Sigix Shearcannon Integrated Thermoelectric Network Achievements -------------- MAIN.CPP No Explosion For You Challenges ------------ None Game ------ Seed ResetCoolingWarhead Manual? 0 Play Time 15:47:15 Cumulative 510.2 hours Start 2023.05.06 @ 00:19:32 End 2023.05.08 @ 23:28:28 Sessions 11 Manual Loads 0 Difficulty Adventurer Special Mode None Game No. 104 Rogue 63 Adventurer 41 Explorer 0 Win Type 4 Total 20 Types 6/3/1/4/1/0/1/2/2 Lore% 85 Gallery% 91 Achievement% 77 Wizard Run 0 Options --------- ASCII 0 Keyboard 0 Movement Mouse Keybinds 0 Fullscreen 2 Font 18/X11 Map View 76x50 Tactical HUD 1 Map Filters NONE Filters NONE Steam 1 RUN: 49a63bf4-7b4f-4d04-a459-372115c2e0bf